﻿Department Family,Entity,Date,Expense Type,Expense Area,Supplier,SME,Transaction Number, Amount ,Description,Expenditure Type
HM Land Registry,HM Land Registry,07/12/2017,Stationery National Contracts,Birkenhead Office,Banner Group Limited,Large,1199881," 2,876.45 ",Stationery,Administration
HM Land Registry,HM Land Registry,07/12/2017,Stationery National Contracts,Central Facilities Management Team,Banner Group Limited,Large,1199881, 35.34 ,Stationery,Administration
HM Land Registry,HM Land Registry,07/12/2017,Stationery National Contracts,Chief Executives Office,Banner Group Limited,Large,1199881, 230.47 ,Stationery,Administration
HM Land Registry,HM Land Registry,07/12/2017,Stationery National Contracts,Coventry Office,Banner Group Limited,Large,1199881, 306.60 ,Stationery,Administration
HM Land Registry,HM Land Registry,07/12/2017,Stationery National Contracts,Croydon Office,Banner Group Limited,Large,1199881, 673.38 ,Stationery,Administration
HM Land Registry,HM Land Registry,07/12/2017,Stationery National Contracts,Director of Information Systems,Banner Group Limited,Large,1199881, 70.06 ,Stationery,Administration
HM Land Registry,HM Land Registry,07/12/2017,Stationery National Contracts,Durham Office,Banner Group Limited,Large,1199881," 2,224.83 ",Stationery,Administration
HM Land Registry,HM Land Registry,07/12/2017,Stationery National Contracts,Finance Group,Banner Group Limited,Large,1199881, 80.12 ,Stationery,Administration
HM Land Registry,HM Land Registry,07/12/2017,Stationery National Contracts,Fylde Office,Banner Group Limited,Large,1199881," 1,219.30 ",Stationery,Administration
HM Land Registry,HM Land Registry,07/12/2017,Stationery National Contracts,Gloucester Office,Banner Group Limited,Large,1199881," 1,326.67 ",Stationery,Administration
HM Land Registry,HM Land Registry,07/12/2017,Stationery National Contracts,Hull Office,Banner Group Limited,Large,1199881," 6,623.03 ",Stationery,Administration
HM Land Registry,HM Land Registry,07/12/2017,Stationery National Contracts,IS Service Delivery,Banner Group Limited,Large,1199881," 7,775.35 ",Stationery,Administration
HM Land Registry,HM Land Registry,07/12/2017,Stationery National Contracts,Land Charges,Banner Group Limited,Large,1199881, 316.90 ,Stationery,Administration
HM Land Registry,HM Land Registry,07/12/2017,Stationery National Contracts,Leicester Office,Banner Group Limited,Large,1199881, 565.32 ,Stationery,Administration
HM Land Registry,HM Land Registry,07/12/2017,Stationery National Contracts,Marketing Services Team,Banner Group Limited,Large,1199881, 127.02 ,Stationery,Administration
HM Land Registry,HM Land Registry,07/12/2017,Stationery National Contracts,Nottingham Office,Banner Group Limited,Large,1199881," 1,001.15 ",Stationery,Administration
HM Land Registry,HM Land Registry,07/12/2017,Stationery National Contracts,Peterborough Office,Banner Group Limited,Large,1199881, 538.24 ,Stationery,Administration
HM Land Registry,HM Land Registry,07/12/2017,Stationery National Contracts,Plymouth Office,Banner Group Limited,Large,1199881, 944.68 ,Stationery,Administration
HM Land Registry,HM Land Registry,07/12/2017,Stationery National Contracts,Telford Office,Banner Group Limited,Large,1199881, 751.07 ,Stationery,Administration
HM Land Registry,HM Land Registry,07/12/2017,Stationery National Contracts,Wales Office,Banner Group Limited,Large,1199881," 2,801.82 ",Stationery,Administration
HM Land Registry,HM Land Registry,07/12/2017,Stationery National Contracts,Weymouth Office,Banner Group Limited,Large,1199881, 568.54 ,Stationery,Administration
HM Land Registry,HM Land Registry,07/12/2017,Stationery National Contracts,Organisation & Employee Development,Banner Group Limited,Large,1199881, 24.46 ,Stationery,Administration
HM Land Registry,HM Land Registry,05/12/2017,Employment Agency Staff Costs,Dir: (Statutory) Digital Services,Capita Business Services Ltd,SME,1199380," 32,283.94 ",Employment Agency Staff Costs,Administration
HM Land Registry,HM Land Registry,05/12/2017,Employment Agency Staff Costs,Dir: (Statutory) Digital Services,Capita Business Services Ltd,SME,1199379," 39,640.72 ",Employment Agency Staff Costs,Administration
HM Land Registry,HM Land Registry,12/12/2017,Employment Agency Staff Costs,Dir: (Statutory) Digital Services,Capita Business Services Ltd,SME,1198279," 38,464.90 ",Employment Agency Staff Costs,Administration
HM Land Registry,HM Land Registry,12/12/2017,Pest Control,Birkenhead Office,Carillion Services Ltd,Large,1200294, 39.03 ,Pest Control,Administration
HM Land Registry,HM Land Registry,12/12/2017,Waste Disposal,Birkenhead Office,Carillion Services Ltd,Large,1200294, 274.12 ,Waste Disposal,Administration
HM Land Registry,HM Land Registry,12/12/2017,Office Cleaning Expenses,Birkenhead Office,Carillion Services Ltd,Large,1200294," 7,363.31 ",Office Cleaning Expenses,Administration
HM Land Registry,HM Land Registry,12/12/2017,Vending Machine Consumables & Repairs,Birkenhead Office,Carillion Services Ltd,Large,1200294," 1,138.11 ",Vending Machine Consumables & Repairs,Administration
HM Land Registry,HM Land Registry,12/12/2017,Security Expenses,Birkenhead Office,Carillion Services Ltd,Large,1200294," 3,018.40 ",Security Expenses,Administration
HM Land Registry,HM Land Registry,12/12/2017,FM Managed Services,Birkenhead Office,Carillion Services Ltd,Large,1200294," 6,042.39 ",Facilities Managed Services,Administration
HM Land Registry,HM Land Registry,12/12/2017,FM Ext Helpdesk,Birkenhead Office,Carillion Services Ltd,Large,1200294, 497.61 ,Facilities External Helpdesk,Administration
HM Land Registry,HM Land Registry,12/12/2017,Grounds Maintenance,Birkenhead Office,Carillion Services Ltd,Large,1200294, 341.57 ,Grounds Maintenance,Administration
HM Land Registry,HM Land Registry,12/12/2017,Facilities - Core Fee,Birkenhead Office,Carillion Services Ltd,Large,1200294," 5,644.91 ",Facilities - Core Fee,Administration
HM Land Registry,HM Land Registry,12/12/2017,Facilities - Core Fee,Central Facilities Management Team,Carillion Services Ltd,Large,1200294," 91,045.29 ",Facilities - Core Fee,Administration
HM Land Registry,HM Land Registry,12/12/2017,Pest Control,Croydon Office,Carillion Services Ltd,Large,1200294, 37.48 ,Pest Control,Administration
HM Land Registry,HM Land Registry,12/12/2017,Waste Disposal,Croydon Office,Carillion Services Ltd,Large,1200294, 200.70 ,Waste Disposal,Administration
HM Land Registry,HM Land Registry,12/12/2017,Office Cleaning Expenses,Croydon Office,Carillion Services Ltd,Large,1200294," 5,610.98 ",Office Cleaning Expenses,Administration
HM Land Registry,HM Land Registry,12/12/2017,Vending Machine Consumables & Repairs,Croydon Office,Carillion Services Ltd,Large,1200294, 211.93 ,Vending Machine Consumables & Repairs,Administration
HM Land Registry,HM Land Registry,12/12/2017,Security Expenses,Croydon Office,Carillion Services Ltd,Large,1200294," 8,300.28 ",Security Expenses,Administration
HM Land Registry,HM Land Registry,12/12/2017,FM Managed Services,Croydon Office,Carillion Services Ltd,Large,1200294," 6,106.98 ",Facilities Managed Services,Administration
HM Land Registry,HM Land Registry,12/12/2017,FM Ext Helpdesk,Croydon Office,Carillion Services Ltd,Large,1200294, 588.16 ,Facilities External Helpdesk,Administration
HM Land Registry,HM Land Registry,12/12/2017,Grounds Maintenance,Croydon Office,Carillion Services Ltd,Large,1200294, 521.27 ,Grounds Maintenance,Administration
HM Land Registry,HM Land Registry,12/12/2017,Facilities - Core Fee,Croydon Office,Carillion Services Ltd,Large,1200294," 8,362.23 ",Facilities - Core Fee,Administration
HM Land Registry,HM Land Registry,12/12/2017,Pest Control,Director of Information Systems,Carillion Services Ltd,Large,1200294, 134.28 ,Pest Control,Administration
HM Land Registry,HM Land Registry,12/12/2017,Waste Disposal,Director of Information Systems,Carillion Services Ltd,Large,1200294, 627.81 ,Waste Disposal,Administration
HM Land Registry,HM Land Registry,12/12/2017,Office Cleaning Expenses,Director of Information Systems,Carillion Services Ltd,Large,1200294," 14,094.02 ",Office Cleaning Expenses,Administration
HM Land Registry,HM Land Registry,12/12/2017,Vending Machine Consumables & Repairs,Director of Information Systems,Carillion Services Ltd,Large,1200294, 206.36 ,Vending Machine Consumables & Repairs,Administration
HM Land Registry,HM Land Registry,12/12/2017,Security Expenses,Director of Information Systems,Carillion Services Ltd,Large,1200294," 16,561.57 ",Security Expenses,Administration
HM Land Registry,HM Land Registry,12/12/2017,FM Managed Services,Director of Information Systems,Carillion Services Ltd,Large,1200294," 13,797.37 ",Facilities Managed Services,Administration
HM Land Registry,HM Land Registry,12/12/2017,FM Ext Helpdesk,Director of Information Systems,Carillion Services Ltd,Large,1200294," 1,576.55 ",Facilities External Helpdesk,Administration
HM Land Registry,HM Land Registry,12/12/2017,Grounds Maintenance,Director of Information Systems,Carillion Services Ltd,Large,1200294," 1,461.51 ",Grounds Maintenance,Administration
HM Land Registry,HM Land Registry,12/12/2017,Facilities - Core Fee,Director of Information Systems,Carillion Services Ltd,Large,1200294," 18,421.86 ",Facilities - Core Fee,Administration
HM Land Registry,HM Land Registry,12/12/2017,Pest Control,Durham Office,Carillion Services Ltd,Large,1200294, 68.46 ,Pest Control,Administration
HM Land Registry,HM Land Registry,12/12/2017,Waste Disposal,Durham Office,Carillion Services Ltd,Large,1200294, 319.12 ,Waste Disposal,Administration
HM Land Registry,HM Land Registry,12/12/2017,Office Cleaning Expenses,Durham Office,Carillion Services Ltd,Large,1200294," 10,447.99 ",Office Cleaning Expenses,Administration
HM Land Registry,HM Land Registry,12/12/2017,Vending Machine Consumables & Repairs,Durham Office,Carillion Services Ltd,Large,1200294, 41.73 ,Vending Machine Consumables & Repairs,Administration
HM Land Registry,HM Land Registry,12/12/2017,Security Expenses,Durham Office,Carillion Services Ltd,Large,1200294," 2,455.04 ",Security Expenses,Administration
HM Land Registry,HM Land Registry,12/12/2017,FM Managed Services,Durham Office,Carillion Services Ltd,Large,1200294," 5,854.57 ",Facilities Managed Services,Administration
HM Land Registry,HM Land Registry,12/12/2017,FM Ext Helpdesk,Durham Office,Carillion Services Ltd,Large,1200294, 610.99 ,Facilities External Helpdesk,Administration
HM Land Registry,HM Land Registry,12/12/2017,Grounds Maintenance,Durham Office,Carillion Services Ltd,Large,1200294, 800.04 ,Grounds Maintenance,Administration
HM Land Registry,HM Land Registry,12/12/2017,Facilities - Core Fee,Durham Office,Carillion Services Ltd,Large,1200294," 6,660.25 ",Facilities - Core Fee,Administration
HM Land Registry,HM Land Registry,12/12/2017,Pest Control,Fylde Office,Carillion Services Ltd,Large,1200294, 36.90 ,Pest Control,Administration
HM Land Registry,HM Land Registry,12/12/2017,Waste Disposal,Fylde Office,Carillion Services Ltd,Large,1200294, 245.64 ,Waste Disposal,Administration
HM Land Registry,HM Land Registry,12/12/2017,Office Cleaning Expenses,Fylde Office,Carillion Services Ltd,Large,1200294," 3,563.55 ",Office Cleaning Expenses,Administration
HM Land Registry,HM Land Registry,12/12/2017,Vending Machine Consumables & Repairs,Fylde Office,Carillion Services Ltd,Large,1200294, 148.92 ,Vending Machine Consumables & Repairs,Administration
HM Land Registry,HM Land Registry,12/12/2017,Security Expenses,Fylde Office,Carillion Services Ltd,Large,1200294," 2,227.28 ",Security Expenses,Administration
HM Land Registry,HM Land Registry,12/12/2017,FM Managed Services,Fylde Office,Carillion Services Ltd,Large,1200294," 5,747.29 ",Facilities Managed Services,Administration
HM Land Registry,HM Land Registry,12/12/2017,FM Ext Helpdesk,Fylde Office,Carillion Services Ltd,Large,1200294, 441.07 ,Facilities External Helpdesk,Administration
HM Land Registry,HM Land Registry,12/12/2017,Grounds Maintenance,Fylde Office,Carillion Services Ltd,Large,1200294," 1,494.11 ",Grounds Maintenance,Administration
HM Land Registry,HM Land Registry,12/12/2017,Facilities - Core Fee,Fylde Office,Carillion Services Ltd,Large,1200294," 4,216.31 ",Facilities - Core Fee,Administration
HM Land Registry,HM Land Registry,12/12/2017,Pest Control,Gloucester Computer Centre,Carillion Services Ltd,Large,1200294, 26.68 ,Pest Control,Administration
HM Land Registry,HM Land Registry,12/12/2017,Waste Disposal,Gloucester Computer Centre,Carillion Services Ltd,Large,1200294, 43.62 ,Waste Disposal,Administration
HM Land Registry,HM Land Registry,12/12/2017,Office Cleaning Expenses,Gloucester Computer Centre,Carillion Services Ltd,Large,1200294, 114.67 ,Office Cleaning Expenses,Administration
HM Land Registry,HM Land Registry,12/12/2017,Vending Machine Consumables & Repairs,Gloucester Computer Centre,Carillion Services Ltd,Large,1200294, 18.98 ,Vending Machine Consumables & Repairs,Administration
HM Land Registry,HM Land Registry,12/12/2017,Security Expenses,Gloucester Computer Centre,Carillion Services Ltd,Large,1200294," 7,590.59 ",Security Expenses,Administration
HM Land Registry,HM Land Registry,12/12/2017,FM Managed Services,Gloucester Computer Centre,Carillion Services Ltd,Large,1200294," 2,797.75 ",Facilities Managed Services,Administration
HM Land Registry,HM Land Registry,12/12/2017,FM Ext Helpdesk,Gloucester Computer Centre,Carillion Services Ltd,Large,1200294, 571.46 ,Facilities External Helpdesk,Administration
HM Land Registry,HM Land Registry,12/12/2017,Grounds Maintenance,Gloucester Computer Centre,Carillion Services Ltd,Large,1200294, 90.42 ,Grounds Maintenance,Administration
HM Land Registry,HM Land Registry,12/12/2017,Facilities - Core Fee,Gloucester Computer Centre,Carillion Services Ltd,Large,1200294," 8,198.46 ",Facilities - Core Fee,Administration
HM Land Registry,HM Land Registry,12/12/2017,Pest Control,Gloucester Office,Carillion Services Ltd,Large,1200294, 73.36 ,Pest Control,Administration
HM Land Registry,HM Land Registry,12/12/2017,Waste Disposal,Gloucester Office,Carillion Services Ltd,Large,1200294, 237.87 ,Waste Disposal,Administration
HM Land Registry,HM Land Registry,12/12/2017,Office Cleaning Expenses,Gloucester Office,Carillion Services Ltd,Large,1200294," 6,729.81 ",Office Cleaning Expenses,Administration
HM Land Registry,HM Land Registry,12/12/2017,Vending Machine Consumables & Repairs,Gloucester Office,Carillion Services Ltd,Large,1200294, 136.49 ,Vending Machine Consumables & Repairs,Administration
HM Land Registry,HM Land Registry,12/12/2017,Security Expenses,Gloucester Office,Carillion Services Ltd,Large,1200294," 9,013.84 ",Security Expenses,Administration
HM Land Registry,HM Land Registry,12/12/2017,FM Managed Services,Gloucester Office,Carillion Services Ltd,Large,1200294," 3,275.82 ",Facilities Managed Services,Administration
HM Land Registry,HM Land Registry,12/12/2017,FM Ext Helpdesk,Gloucester Office,Carillion Services Ltd,Large,1200294, 611.86 ,Facilities External Helpdesk,Administration
HM Land Registry,HM Land Registry,12/12/2017,Grounds Maintenance,Gloucester Office,Carillion Services Ltd,Large,1200294, 611.46 ,Grounds Maintenance,Administration
HM Land Registry,HM Land Registry,12/12/2017,Facilities - Core Fee,Gloucester Office,Carillion Services Ltd,Large,1200294," 3,757.97 ",Facilities - Core Fee,Administration
HM Land Registry,HM Land Registry,12/12/2017,Pest Control,Hull Office,Carillion Services Ltd,Large,1200294, 46.64 ,Pest Control,Administration
HM Land Registry,HM Land Registry,12/12/2017,Waste Disposal,Hull Office,Carillion Services Ltd,Large,1200294, 179.44 ,Waste Disposal,Administration
HM Land Registry,HM Land Registry,12/12/2017,Office Cleaning Expenses,Hull Office,Carillion Services Ltd,Large,1200294," 3,780.24 ",Office Cleaning Expenses,Administration
HM Land Registry,HM Land Registry,12/12/2017,Vending Machine Consumables & Repairs,Hull Office,Carillion Services Ltd,Large,1200294, 328.29 ,Vending Machine Consumables & Repairs,Administration
HM Land Registry,HM Land Registry,12/12/2017,Security Expenses,Hull Office,Carillion Services Ltd,Large,1200294," 2,774.10 ",Security Expenses,Administration
HM Land Registry,HM Land Registry,12/12/2017,FM Managed Services,Hull Office,Carillion Services Ltd,Large,1200294," 5,577.91 ",Facilities Managed Services,Administration
HM Land Registry,HM Land Registry,12/12/2017,FM Ext Helpdesk,Hull Office,Carillion Services Ltd,Large,1200294, 489.10 ,Facilities External Helpdesk,Administration
HM Land Registry,HM Land Registry,12/12/2017,Grounds Maintenance,Hull Office,Carillion Services Ltd,Large,1200294, 611.46 ,Grounds Maintenance,Administration
HM Land Registry,HM Land Registry,12/12/2017,Facilities - Core Fee,Hull Office,Carillion Services Ltd,Large,1200294," 6,786.69 ",Facilities - Core Fee,Administration
HM Land Registry,HM Land Registry,12/12/2017,Pest Control,Leicester Office,Carillion Services Ltd,Large,1200294, 36.90 ,Pest Control,Administration
HM Land Registry,HM Land Registry,12/12/2017,Waste Disposal,Leicester Office,Carillion Services Ltd,Large,1200294, 259.55 ,Waste Disposal,Administration
HM Land Registry,HM Land Registry,12/12/2017,Office Cleaning Expenses,Leicester Office,Carillion Services Ltd,Large,1200294," 2,275.93 ",Office Cleaning Expenses,Administration
HM Land Registry,HM Land Registry,12/12/2017,Vending Machine Consumables & Repairs,Leicester Office,Carillion Services Ltd,Large,1200294, 109.81 ,Vending Machine Consumables & Repairs,Administration
HM Land Registry,HM Land Registry,12/12/2017,Security Expenses,Leicester Office,Carillion Services Ltd,Large,1200294," 2,683.41 ",Security Expenses,Administration
HM Land Registry,HM Land Registry,12/12/2017,FM Managed Services,Leicester Office,Carillion Services Ltd,Large,1200294," 4,124.56 ",Facilities Managed Services,Administration
HM Land Registry,HM Land Registry,12/12/2017,FM Ext Helpdesk,Leicester Office,Carillion Services Ltd,Large,1200294, 517.46 ,Facilities External Helpdesk,Administration
HM Land Registry,HM Land Registry,12/12/2017,Grounds Maintenance,Leicester Office,Carillion Services Ltd,Large,1200294, 128.71 ,Grounds Maintenance,Administration
HM Land Registry,HM Land Registry,12/12/2017,Facilities - Core Fee,Leicester Office,Carillion Services Ltd,Large,1200294," 9,260.43 ",Facilities - Core Fee,Administration
HM Land Registry,HM Land Registry,12/12/2017,Pest Control,Nottingham Office,Carillion Services Ltd,Large,1200294, 126.01 ,Pest Control,Administration
HM Land Registry,HM Land Registry,12/12/2017,Waste Disposal,Nottingham Office,Carillion Services Ltd,Large,1200294, 319.12 ,Waste Disposal,Administration
HM Land Registry,HM Land Registry,12/12/2017,Office Cleaning Expenses,Nottingham Office,Carillion Services Ltd,Large,1200294," 5,693.27 ",Office Cleaning Expenses,Administration
HM Land Registry,HM Land Registry,12/12/2017,Vending Machine Consumables & Repairs,Nottingham Office,Carillion Services Ltd,Large,1200294, 122.74 ,Vending Machine Consumables & Repairs,Administration
HM Land Registry,HM Land Registry,12/12/2017,Security Expenses,Nottingham Office,Carillion Services Ltd,Large,1200294," 3,167.78 ",Security Expenses,Administration
HM Land Registry,HM Land Registry,12/12/2017,FM Managed Services,Nottingham Office,Carillion Services Ltd,Large,1200294," 10,685.05 ",Facilities Managed Services,Administration
HM Land Registry,HM Land Registry,12/12/2017,FM Ext Helpdesk,Nottingham Office,Carillion Services Ltd,Large,1200294," 1,777.10 ",Facilities External Helpdesk,Administration
HM Land Registry,HM Land Registry,12/12/2017,Grounds Maintenance,Nottingham Office,Carillion Services Ltd,Large,1200294, 310.00 ,Grounds Maintenance,Administration
HM Land Registry,HM Land Registry,12/12/2017,Facilities - Core Fee,Nottingham Office,Carillion Services Ltd,Large,1200294," 6,418.03 ",Facilities - Core Fee,Administration
HM Land Registry,HM Land Registry,12/12/2017,Pest Control,Peterborough Office,Carillion Services Ltd,Large,1200294, 38.35 ,Pest Control,Administration
HM Land Registry,HM Land Registry,12/12/2017,Office Cleaning Expenses,Peterborough Office,Carillion Services Ltd,Large,1200294, 820.38 ,Office Cleaning Expenses,Administration
HM Land Registry,HM Land Registry,12/12/2017,FM Managed Services,Peterborough Office,Carillion Services Ltd,Large,1200294," 5,384.86 ",Facilities Managed Services,Administration
HM Land Registry,HM Land Registry,12/12/2017,FM Ext Helpdesk,Peterborough Office,Carillion Services Ltd,Large,1200294, 622.51 ,Facilities External Helpdesk,Administration
HM Land Registry,HM Land Registry,12/12/2017,Facilities - Core Fee,Peterborough Office,Carillion Services Ltd,Large,1200294," 3,667.29 ",Facilities - Core Fee,Administration
HM Land Registry,HM Land Registry,12/12/2017,Pest Control,Telford Office,Carillion Services Ltd,Large,1200294, 41.90 ,Pest Control,Administration
HM Land Registry,HM Land Registry,12/12/2017,Waste Disposal,Telford Office,Carillion Services Ltd,Large,1200294, 229.52 ,Waste Disposal,Administration
HM Land Registry,HM Land Registry,12/12/2017,Office Cleaning Expenses,Telford Office,Carillion Services Ltd,Large,1200294," 5,989.56 ",Office Cleaning Expenses,Administration
HM Land Registry,HM Land Registry,12/12/2017,Vending Machine Consumables & Repairs,Telford Office,Carillion Services Ltd,Large,1200294, 187.46 ,Vending Machine Consumables & Repairs,Administration
HM Land Registry,HM Land Registry,12/12/2017,Security Expenses,Telford Office,Carillion Services Ltd,Large,1200294," 2,728.38 ",Security Expenses,Administration
HM Land Registry,HM Land Registry,12/12/2017,FM Managed Services,Telford Office,Carillion Services Ltd,Large,1200294," 6,032.59 ",Facilities Managed Services,Administration
HM Land Registry,HM Land Registry,12/12/2017,FM Ext Helpdesk,Telford Office,Carillion Services Ltd,Large,1200294, 642.31 ,Facilities External Helpdesk,Administration
HM Land Registry,HM Land Registry,12/12/2017,Grounds Maintenance,Telford Office,Carillion Services Ltd,Large,1200294," 1,053.73 ",Grounds Maintenance,Administration
HM Land Registry,HM Land Registry,12/12/2017,Facilities - Core Fee,Telford Office,Carillion Services Ltd,Large,1200294," 6,542.91 ",Facilities - Core Fee,Administration
HM Land Registry,HM Land Registry,12/12/2017,Pest Control,Wales Office,Carillion Services Ltd,Large,1200294, 90.99 ,Pest Control,Administration
HM Land Registry,HM Land Registry,12/12/2017,Waste Disposal,Wales Office,Carillion Services Ltd,Large,1200294, 529.77 ,Waste Disposal,Administration
HM Land Registry,HM Land Registry,12/12/2017,Office Cleaning Expenses,Wales Office,Carillion Services Ltd,Large,1200294," 9,059.57 ",Office Cleaning Expenses,Administration
HM Land Registry,HM Land Registry,12/12/2017,Vending Machine Consumables & Repairs,Wales Office,Carillion Services Ltd,Large,1200294, 183.78 ,Vending Machine Consumables & Repairs,Administration
HM Land Registry,HM Land Registry,12/12/2017,Security Expenses,Wales Office,Carillion Services Ltd,Large,1200294," 2,482.60 ",Security Expenses,Administration
HM Land Registry,HM Land Registry,12/12/2017,FM Managed Services,Wales Office,Carillion Services Ltd,Large,1200294," 5,800.14 ",Facilities Managed Services,Administration
HM Land Registry,HM Land Registry,12/12/2017,FM Ext Helpdesk,Wales Office,Carillion Services Ltd,Large,1200294, 528.60 ,Facilities External Helpdesk,Administration
HM Land Registry,HM Land Registry,12/12/2017,Grounds Maintenance,Wales Office,Carillion Services Ltd,Large,1200294, 453.64 ,Grounds Maintenance,Administration
HM Land Registry,HM Land Registry,12/12/2017,Facilities - Core Fee,Wales Office,Carillion Services Ltd,Large,1200294," 5,563.43 ",Facilities - Core Fee,Administration
HM Land Registry,HM Land Registry,12/12/2017,Pest Control,Weymouth Office,Carillion Services Ltd,Large,1200294, 39.03 ,Pest Control,Administration
HM Land Registry,HM Land Registry,12/12/2017,Waste Disposal,Weymouth Office,Carillion Services Ltd,Large,1200294, 296.48 ,Waste Disposal,Administration
HM Land Registry,HM Land Registry,12/12/2017,Office Cleaning Expenses,Weymouth Office,Carillion Services Ltd,Large,1200294," 3,874.58 ",Office Cleaning Expenses,Administration
HM Land Registry,HM Land Registry,12/12/2017,Vending Machine Consumables & Repairs,Weymouth Office,Carillion Services Ltd,Large,1200294, 106.37 ,Vending Machine Consumables & Repairs,Administration
HM Land Registry,HM Land Registry,12/12/2017,Security Expenses,Weymouth Office,Carillion Services Ltd,Large,1200294," 2,734.56 ",Security Expenses,Administration
HM Land Registry,HM Land Registry,12/12/2017,FM Managed Services,Weymouth Office,Carillion Services Ltd,Large,1200294," 5,546.80 ",Facilities Managed Services,Administration
HM Land Registry,HM Land Registry,12/12/2017,FM Ext Helpdesk,Weymouth Office,Carillion Services Ltd,Large,1200294, 396.50 ,Facilities External Helpdesk,Administration
HM Land Registry,HM Land Registry,12/12/2017,Grounds Maintenance,Weymouth Office,Carillion Services Ltd,Large,1200294, 704.77 ,Grounds Maintenance,Administration
HM Land Registry,HM Land Registry,12/12/2017,Facilities - Core Fee,Weymouth Office,Carillion Services Ltd,Large,1200294," 2,902.79 ",Facilities - Core Fee,Administration
HM Land Registry,HM Land Registry,12/12/2017,Fixed Asset Interface Account,Balance Sheet,Carillion Services Ltd,Large,1200325," 72,314.98 ",Fixed Assets,Administration
HM Land Registry,HM Land Registry,12/12/2017,Security Expenses,Birkenhead Office,Carillion Services Ltd,Large,1200325, 231.88 ,Security Expenses,Administration
HM Land Registry,HM Land Registry,12/12/2017,Facilities - Quoted & Ad Hoc Works,Birkenhead Office,Carillion Services Ltd,Large,1200325," 13,645.90 ",Facilities - Quoted & Ad Hoc Works,Administration
HM Land Registry,HM Land Registry,12/12/2017,"FF&F:Purchases <£1,000",Birkenhead Office,Carillion Services Ltd,Large,1200325, 677.88 ,"Furniture, Fixtures & Fittings: Purchases less than £1,000.00",Administration
HM Land Registry,HM Land Registry,12/12/2017,Facilities - Quoted & Ad Hoc Works,Central Facilities Management Team,Carillion Services Ltd,Large,1200325," 3,962.93 ",Facilities - Quoted & Ad Hoc Works,Administration
HM Land Registry,HM Land Registry,12/12/2017,"FF&F:Purchases <£1,000",Coventry Office,Carillion Services Ltd,Large,1200325, 69.60 ,"Furniture, Fixtures & Fittings: Purchases less than £1,000.00",Administration
HM Land Registry,HM Land Registry,12/12/2017,Facilities - Quoted & Ad Hoc Works,Croydon Office,Carillion Services Ltd,Large,1200325," 16,709.85 ",Facilities - Quoted & Ad Hoc Works,Administration
HM Land Registry,HM Land Registry,12/12/2017,"FF&F:Purchases <£1,000",Croydon Office,Carillion Services Ltd,Large,1200325, 647.22 ,"Furniture, Fixtures & Fittings: Purchases less than £1,000.00",Administration
HM Land Registry,HM Land Registry,12/12/2017,Facilities - Quoted & Ad Hoc Works,Director of Information Systems,Carillion Services Ltd,Large,1200325," 21,404.42 ",Facilities - Quoted & Ad Hoc Works,Administration
HM Land Registry,HM Land Registry,12/12/2017,Major Property Maintenance Projects,Director of Information Systems,Carillion Services Ltd,Large,1200325," 25,625.50 ",Major Property Maintenance Projects,Administration
HM Land Registry,HM Land Registry,12/12/2017,Waste Disposal,Durham Office,Carillion Services Ltd,Large,1200325, 183.45 ,Waste Disposal,Administration
HM Land Registry,HM Land Registry,12/12/2017,Security Expenses,Durham Office,Carillion Services Ltd,Large,1200325, 281.53 ,Security Expenses,Administration
HM Land Registry,HM Land Registry,12/12/2017,Facilities - Quoted & Ad Hoc Works,Durham Office,Carillion Services Ltd,Large,1200325," 3,831.30 ",Facilities - Quoted & Ad Hoc Works,Administration
HM Land Registry,HM Land Registry,12/12/2017,"FF&F:Purchases <£1,000",Durham Office,Carillion Services Ltd,Large,1200325," 2,729.82 ","Furniture, Fixtures & Fittings: Purchases less than £1,000.00",Administration
HM Land Registry,HM Land Registry,12/12/2017,Waste Disposal,Fylde Office,Carillion Services Ltd,Large,1200325, 169.04 ,Waste Disposal,Administration
HM Land Registry,HM Land Registry,12/12/2017,Security Expenses,Fylde Office,Carillion Services Ltd,Large,1200325, 55.21 ,Security Expenses,Administration
HM Land Registry,HM Land Registry,12/12/2017,Facilities - Quoted & Ad Hoc Works,Fylde Office,Carillion Services Ltd,Large,1200325," 7,415.39 ",Facilities - Quoted & Ad Hoc Works,Administration
HM Land Registry,HM Land Registry,12/12/2017,"FF&F:Purchases <£1,000",Fylde Office,Carillion Services Ltd,Large,1200325," 2,994.40 ","Furniture, Fixtures & Fittings: Purchases less than £1,000.00",Administration
HM Land Registry,HM Land Registry,12/12/2017,Facilities - Quoted & Ad Hoc Works,Gloucester Computer Centre,Carillion Services Ltd,Large,1200325," 5,012.71 ",Facilities - Quoted & Ad Hoc Works,Administration
HM Land Registry,HM Land Registry,12/12/2017,Facilities - Quoted & Ad Hoc Works,Gloucester Office,Carillion Services Ltd,Large,1200325," 12,241.19 ",Facilities - Quoted & Ad Hoc Works,Administration
HM Land Registry,HM Land Registry,12/12/2017,"FF&F:Purchases <£1,000",Gloucester Office,Carillion Services Ltd,Large,1200325," 1,549.50 ","Furniture, Fixtures & Fittings: Purchases less than £1,000.00",Administration
HM Land Registry,HM Land Registry,12/12/2017,Waste Disposal,Hull Office,Carillion Services Ltd,Large,1200325, 183.45 ,Waste Disposal,Administration
HM Land Registry,HM Land Registry,12/12/2017,Security Expenses,Hull Office,Carillion Services Ltd,Large,1200325," 7,082.02 ",Security Expenses,Administration
HM Land Registry,HM Land Registry,12/12/2017,Facilities - Quoted & Ad Hoc Works,Hull Office,Carillion Services Ltd,Large,1200325," 9,351.96 ",Facilities - Quoted & Ad Hoc Works,Administration
HM Land Registry,HM Land Registry,12/12/2017,"FF&F:Purchases <£1,000",Hull Office,Carillion Services Ltd,Large,1200325," 5,072.91 ","Furniture, Fixtures & Fittings: Purchases less than £1,000.00",Administration
HM Land Registry,HM Land Registry,12/12/2017,Pest Control,Leicester Office,Carillion Services Ltd,Large,1200325, 195.28 ,Pest Control,Administration
HM Land Registry,HM Land Registry,12/12/2017,Facilities - Quoted & Ad Hoc Works,Leicester Office,Carillion Services Ltd,Large,1200325, 624.67 ,Facilities - Quoted & Ad Hoc Works,Administration
HM Land Registry,HM Land Registry,12/12/2017,"FF&F:Purchases <£1,000",Leicester Office,Carillion Services Ltd,Large,1200325," 2,168.97 ","Furniture, Fixtures & Fittings: Purchases less than £1,000.00",Administration
HM Land Registry,HM Land Registry,12/12/2017,Facilities - Quoted & Ad Hoc Works,Nottingham Office,Carillion Services Ltd,Large,1200325," 6,323.70 ",Facilities - Quoted & Ad Hoc Works,Administration
HM Land Registry,HM Land Registry,12/12/2017,"FF&F:Purchases <£1,000",Nottingham Office,Carillion Services Ltd,Large,1200325," 4,256.48 ","Furniture, Fixtures & Fittings: Purchases less than £1,000.00",Administration
HM Land Registry,HM Land Registry,12/12/2017,Facilities - Quoted & Ad Hoc Works,Peterborough Office,Carillion Services Ltd,Large,1200325," 17,244.61 ",Facilities - Quoted & Ad Hoc Works,Administration
HM Land Registry,HM Land Registry,12/12/2017,"FF&F:Purchases <£1,000",Peterborough Office,Carillion Services Ltd,Large,1200325, 441.45 ,"Furniture, Fixtures & Fittings: Purchases less than £1,000.00",Administration
HM Land Registry,HM Land Registry,12/12/2017,Major Property Maintenance Projects,Peterborough Office,Carillion Services Ltd,Large,1200325," 13,027.29 ",Major Property Maintenance Projects,Administration
HM Land Registry,HM Land Registry,12/12/2017,Waste Disposal,Plymouth Office,Carillion Services Ltd,Large,1200325, 265.83 ,Waste Disposal,Administration
HM Land Registry,HM Land Registry,12/12/2017,Facilities - Quoted & Ad Hoc Works,Plymouth Office,Carillion Services Ltd,Large,1200325," 6,194.39 ",Facilities - Quoted & Ad Hoc Works,Administration
HM Land Registry,HM Land Registry,12/12/2017,"FF&F:Purchases <£1,000",Plymouth Office,Carillion Services Ltd,Large,1200325," 6,182.33 ","Furniture, Fixtures & Fittings: Purchases less than £1,000.00",Administration
HM Land Registry,HM Land Registry,12/12/2017,Major Property Maintenance Projects,Plymouth Office,Carillion Services Ltd,Large,1200325," 179,978.82 ",Major Property Maintenance Projects,Administration
HM Land Registry,HM Land Registry,12/12/2017,Office Cleaning Expenses,Telford Office,Carillion Services Ltd,Large,1200325, 231.12 ,Office Cleaning Expenses,Administration
HM Land Registry,HM Land Registry,12/12/2017,Security Expenses,Telford Office,Carillion Services Ltd,Large,1200325, 209.80 ,Security Expenses,Administration
HM Land Registry,HM Land Registry,12/12/2017,Grounds Maintenance,Telford Office,Carillion Services Ltd,Large,1200325," 1,147.04 ",Grounds Maintenance,Administration
HM Land Registry,HM Land Registry,12/12/2017,Facilities - Quoted & Ad Hoc Works,Telford Office,Carillion Services Ltd,Large,1200325," 1,977.80 ",Facilities - Quoted & Ad Hoc Works,Administration
HM Land Registry,HM Land Registry,12/12/2017,"FF&F:Purchases <£1,000",Telford Office,Carillion Services Ltd,Large,1200325," 2,785.14 ","Furniture, Fixtures & Fittings: Purchases less than £1,000.00",Administration
HM Land Registry,HM Land Registry,12/12/2017,Waste Disposal,Wales Office,Carillion Services Ltd,Large,1200325, 468.56 ,Waste Disposal,Administration
HM Land Registry,HM Land Registry,12/12/2017,Security Expenses,Wales Office,Carillion Services Ltd,Large,1200325," 26,903.44 ",Security Expenses,Administration
HM Land Registry,HM Land Registry,12/12/2017,Facilities - Quoted & Ad Hoc Works,Wales Office,Carillion Services Ltd,Large,1200325," 12,099.53 ",Facilities - Quoted & Ad Hoc Works,Administration
HM Land Registry,HM Land Registry,12/12/2017,"FF&F:Purchases <£1,000",Wales Office,Carillion Services Ltd,Large,1200325," 9,054.36 ","Furniture, Fixtures & Fittings: Purchases less than £1,000.00",Administration
HM Land Registry,HM Land Registry,12/12/2017,Waste Disposal,Weymouth Office,Carillion Services Ltd,Large,1200325, 103.75 ,Waste Disposal,Administration
HM Land Registry,HM Land Registry,12/12/2017,Facilities - Quoted & Ad Hoc Works,Weymouth Office,Carillion Services Ltd,Large,1200325," 10,430.88 ",Facilities - Quoted & Ad Hoc Works,Administration
HM Land Registry,HM Land Registry,12/12/2017,"FF&F:Purchases <£1,000",Weymouth Office,Carillion Services Ltd,Large,1200325," 4,455.40 ","Furniture, Fixtures & Fittings: Purchases less than £1,000.00",Administration
HM Land Registry,HM Land Registry,12/12/2017,Electricity,Birkenhead Office,Carillion Services Ltd,Large,1200295," 4,831.94 ",Electricity,Administration
HM Land Registry,HM Land Registry,12/12/2017,Gas,Birkenhead Office,Carillion Services Ltd,Large,1200295, 501.28 ,Gas,Administration
HM Land Registry,HM Land Registry,12/12/2017,Electricity,Croydon Office,Carillion Services Ltd,Large,1200295," 6,502.23 ",Electricity,Administration
HM Land Registry,HM Land Registry,12/12/2017,Gas,Croydon Office,Carillion Services Ltd,Large,1200295," 1,132.83 ",Gas,Administration
HM Land Registry,HM Land Registry,12/12/2017,Electricity,Director of Information Systems,Carillion Services Ltd,Large,1200295," 46,531.59 ",Electricity,Administration
HM Land Registry,HM Land Registry,12/12/2017,Gas,Director of Information Systems,Carillion Services Ltd,Large,1200295," 5,991.29 ",Gas,Administration
HM Land Registry,HM Land Registry,12/12/2017,Electricity,Durham Office,Carillion Services Ltd,Large,1200295," 4,584.70 ",Electricity,Administration
HM Land Registry,HM Land Registry,12/12/2017,Gas,Durham Office,Carillion Services Ltd,Large,1200295, 659.77 ,Gas,Administration
HM Land Registry,HM Land Registry,12/12/2017,Electricity,Fylde Office,Carillion Services Ltd,Large,1200295," 3,797.52 ",Electricity,Administration
HM Land Registry,HM Land Registry,12/12/2017,Gas,Fylde Office,Carillion Services Ltd,Large,1200295," 1,205.72 ",Gas,Administration
HM Land Registry,HM Land Registry,12/12/2017,Electricity,Gloucester Computer Centre,Carillion Services Ltd,Large,1200295," 27,767.26 ",Electricity,Administration
HM Land Registry,HM Land Registry,12/12/2017,Gas,Gloucester Computer Centre,Carillion Services Ltd,Large,1200295, 283.40 ,Gas,Administration
HM Land Registry,HM Land Registry,12/12/2017,Electricity,Gloucester Office,Carillion Services Ltd,Large,1200295," 4,465.30 ",Electricity,Administration
HM Land Registry,HM Land Registry,12/12/2017,Gas,Gloucester Office,Carillion Services Ltd,Large,1200295," 1,061.84 ",Gas,Administration
HM Land Registry,HM Land Registry,12/12/2017,Water,Gloucester Office,Carillion Services Ltd,Large,1200295," 1,711.27 ",Water,Administration
HM Land Registry,HM Land Registry,12/12/2017,Electricity,Hull Office,Carillion Services Ltd,Large,1200295," 6,116.93 ",Electricity,Administration
HM Land Registry,HM Land Registry,12/12/2017,Gas,Hull Office,Carillion Services Ltd,Large,1200295," 1,649.80 ",Gas,Administration
HM Land Registry,HM Land Registry,12/12/2017,Water,Hull Office,Carillion Services Ltd,Large,1200295," 1,099.81 ",Water,Administration
HM Land Registry,HM Land Registry,12/12/2017,Electricity,Leicester Office,Carillion Services Ltd,Large,1200295," 3,760.65 ",Electricity,Administration
HM Land Registry,HM Land Registry,12/12/2017,Gas,Leicester Office,Carillion Services Ltd,Large,1200295," 1,178.21 ",Gas,Administration
HM Land Registry,HM Land Registry,12/12/2017,Electricity,Nottingham Office,Carillion Services Ltd,Large,1200295," 5,810.81 ",Electricity,Administration
HM Land Registry,HM Land Registry,12/12/2017,Gas,Nottingham Office,Carillion Services Ltd,Large,1200295, 228.60 ,Gas,Administration
HM Land Registry,HM Land Registry,12/12/2017,Electricity,Telford Office,Carillion Services Ltd,Large,1200295," 4,401.62 ",Electricity,Administration
HM Land Registry,HM Land Registry,12/12/2017,Gas,Telford Office,Carillion Services Ltd,Large,1200295," 1,547.28 ",Gas,Administration
HM Land Registry,HM Land Registry,12/12/2017,Water,Telford Office,Carillion Services Ltd,Large,1200295," 5,073.73 ",Water,Administration
HM Land Registry,HM Land Registry,12/12/2017,Electricity,Wales Office,Carillion Services Ltd,Large,1200295," 4,546.52 ",Electricity,Administration
HM Land Registry,HM Land Registry,12/12/2017,Gas,Wales Office,Carillion Services Ltd,Large,1200295, 660.65 ,Gas,Administration
HM Land Registry,HM Land Registry,12/12/2017,Electricity,Weymouth Office,Carillion Services Ltd,Large,1200295," 5,039.04 ",Electricity,Administration
HM Land Registry,HM Land Registry,12/12/2017,Gas,Weymouth Office,Carillion Services Ltd,Large,1200295," 1,134.69 ",Gas,Administration
HM Land Registry,HM Land Registry,12/12/2017,Major Property Maintenance Projects,Plymouth Office,Carillion Services Ltd,Large,1200324,"-61,737.05 ",Major Property Maintenance Projects,Administration
HM Land Registry,HM Land Registry,21/12/2017,Pest Control,Birkenhead Office,Carillion Services Ltd,Large,1201313, 39.03 ,Pest Control,Administration
HM Land Registry,HM Land Registry,21/12/2017,Waste Disposal,Birkenhead Office,Carillion Services Ltd,Large,1201313, 274.12 ,Waste Disposal,Administration
HM Land Registry,HM Land Registry,21/12/2017,Office Cleaning Expenses,Birkenhead Office,Carillion Services Ltd,Large,1201313," 5,476.82 ",Office Cleaning Expenses,Administration
HM Land Registry,HM Land Registry,21/12/2017,Vending Machine Consumables & Repairs,Birkenhead Office,Carillion Services Ltd,Large,1201313," 1,138.11 ",Vending Machine Consumables & Repairs,Administration
HM Land Registry,HM Land Registry,21/12/2017,Security Expenses,Birkenhead Office,Carillion Services Ltd,Large,1201313," 3,018.40 ",Security Expenses,Administration
HM Land Registry,HM Land Registry,21/12/2017,FM Managed Services,Birkenhead Office,Carillion Services Ltd,Large,1201313," 6,042.39 ",Facilities Managed Services,Administration
HM Land Registry,HM Land Registry,21/12/2017,FM Ext Helpdesk,Birkenhead Office,Carillion Services Ltd,Large,1201313, 497.61 ,Facilities External Helpdesk,Administration
HM Land Registry,HM Land Registry,21/12/2017,Grounds Maintenance,Birkenhead Office,Carillion Services Ltd,Large,1201313, 341.57 ,Grounds Maintenance,Administration
HM Land Registry,HM Land Registry,21/12/2017,Facilities - Core Fee,Birkenhead Office,Carillion Services Ltd,Large,1201313," 5,644.91 ",Facilities - Core Fee,Administration
HM Land Registry,HM Land Registry,21/12/2017,Office Cleaning Expenses,Central Facilities Management Team,Carillion Services Ltd,Large,1201313,-238.19 ,Office Cleaning Expenses,Administration
HM Land Registry,HM Land Registry,21/12/2017,Facilities - Core Fee,Central Facilities Management Team,Carillion Services Ltd,Large,1201313,"-1,929.32 ",Facilities - Core Fee,Administration
HM Land Registry,HM Land Registry,21/12/2017,Pest Control,Croydon Office,Carillion Services Ltd,Large,1201313, 37.48 ,Pest Control,Administration
HM Land Registry,HM Land Registry,21/12/2017,Waste Disposal,Croydon Office,Carillion Services Ltd,Large,1201313, 200.70 ,Waste Disposal,Administration
HM Land Registry,HM Land Registry,21/12/2017,Office Cleaning Expenses,Croydon Office,Carillion Services Ltd,Large,1201313," 5,610.98 ",Office Cleaning Expenses,Administration
HM Land Registry,HM Land Registry,21/12/2017,Vending Machine Consumables & Repairs,Croydon Office,Carillion Services Ltd,Large,1201313, 211.93 ,Vending Machine Consumables & Repairs,Administration
HM Land Registry,HM Land Registry,21/12/2017,Security Expenses,Croydon Office,Carillion Services Ltd,Large,1201313," 8,300.28 ",Security Expenses,Administration
HM Land Registry,HM Land Registry,21/12/2017,FM Managed Services,Croydon Office,Carillion Services Ltd,Large,1201313," 6,106.98 ",Facilities Managed Services,Administration
HM Land Registry,HM Land Registry,21/12/2017,FM Ext Helpdesk,Croydon Office,Carillion Services Ltd,Large,1201313, 588.16 ,Facilities External Helpdesk,Administration
HM Land Registry,HM Land Registry,21/12/2017,Grounds Maintenance,Croydon Office,Carillion Services Ltd,Large,1201313, 521.27 ,Grounds Maintenance,Administration
HM Land Registry,HM Land Registry,21/12/2017,Facilities - Core Fee,Croydon Office,Carillion Services Ltd,Large,1201313," 8,362.23 ",Facilities - Core Fee,Administration
HM Land Registry,HM Land Registry,21/12/2017,Pest Control,Director of Information Systems,Carillion Services Ltd,Large,1201313, 134.28 ,Pest Control,Administration
HM Land Registry,HM Land Registry,21/12/2017,Waste Disposal,Director of Information Systems,Carillion Services Ltd,Large,1201313, 627.81 ,Waste Disposal,Administration
HM Land Registry,HM Land Registry,21/12/2017,Office Cleaning Expenses,Director of Information Systems,Carillion Services Ltd,Large,1201313," 9,189.14 ",Office Cleaning Expenses,Administration
HM Land Registry,HM Land Registry,21/12/2017,Vending Machine Consumables & Repairs,Director of Information Systems,Carillion Services Ltd,Large,1201313, 206.36 ,Vending Machine Consumables & Repairs,Administration
HM Land Registry,HM Land Registry,21/12/2017,Security Expenses,Director of Information Systems,Carillion Services Ltd,Large,1201313," 16,561.57 ",Security Expenses,Administration
HM Land Registry,HM Land Registry,21/12/2017,FM Managed Services,Director of Information Systems,Carillion Services Ltd,Large,1201313," 13,797.37 ",Facilities Managed Services,Administration
HM Land Registry,HM Land Registry,21/12/2017,FM Ext Helpdesk,Director of Information Systems,Carillion Services Ltd,Large,1201313," 1,576.55 ",Facilities External Helpdesk,Administration
HM Land Registry,HM Land Registry,21/12/2017,Grounds Maintenance,Director of Information Systems,Carillion Services Ltd,Large,1201313," 1,461.51 ",Grounds Maintenance,Administration
HM Land Registry,HM Land Registry,21/12/2017,Facilities - Core Fee,Director of Information Systems,Carillion Services Ltd,Large,1201313," 18,421.86 ",Facilities - Core Fee,Administration
HM Land Registry,HM Land Registry,21/12/2017,Pest Control,Durham Office,Carillion Services Ltd,Large,1201313, 68.46 ,Pest Control,Administration
HM Land Registry,HM Land Registry,21/12/2017,Waste Disposal,Durham Office,Carillion Services Ltd,Large,1201313, 319.12 ,Waste Disposal,Administration
HM Land Registry,HM Land Registry,21/12/2017,Office Cleaning Expenses,Durham Office,Carillion Services Ltd,Large,1201313," 6,684.00 ",Office Cleaning Expenses,Administration
HM Land Registry,HM Land Registry,21/12/2017,Vending Machine Consumables & Repairs,Durham Office,Carillion Services Ltd,Large,1201313, 54.23 ,Vending Machine Consumables & Repairs,Administration
HM Land Registry,HM Land Registry,21/12/2017,Security Expenses,Durham Office,Carillion Services Ltd,Large,1201313," 2,455.04 ",Security Expenses,Administration
HM Land Registry,HM Land Registry,21/12/2017,FM Managed Services,Durham Office,Carillion Services Ltd,Large,1201313," 5,854.57 ",Facilities Managed Services,Administration
HM Land Registry,HM Land Registry,21/12/2017,FM Ext Helpdesk,Durham Office,Carillion Services Ltd,Large,1201313, 610.99 ,Facilities External Helpdesk,Administration
HM Land Registry,HM Land Registry,21/12/2017,Grounds Maintenance,Durham Office,Carillion Services Ltd,Large,1201313, 800.04 ,Grounds Maintenance,Administration
HM Land Registry,HM Land Registry,21/12/2017,Facilities - Core Fee,Durham Office,Carillion Services Ltd,Large,1201313," 6,660.25 ",Facilities - Core Fee,Administration
HM Land Registry,HM Land Registry,21/12/2017,Pest Control,Fylde Office,Carillion Services Ltd,Large,1201313, 36.90 ,Pest Control,Administration
HM Land Registry,HM Land Registry,21/12/2017,Waste Disposal,Fylde Office,Carillion Services Ltd,Large,1201313, 245.64 ,Waste Disposal,Administration
HM Land Registry,HM Land Registry,21/12/2017,Office Cleaning Expenses,Fylde Office,Carillion Services Ltd,Large,1201313," 3,563.55 ",Office Cleaning Expenses,Administration
HM Land Registry,HM Land Registry,21/12/2017,Vending Machine Consumables & Repairs,Fylde Office,Carillion Services Ltd,Large,1201313, 148.92 ,Vending Machine Consumables & Repairs,Administration
HM Land Registry,HM Land Registry,21/12/2017,Security Expenses,Fylde Office,Carillion Services Ltd,Large,1201313," 2,227.28 ",Security Expenses,Administration
HM Land Registry,HM Land Registry,21/12/2017,FM Managed Services,Fylde Office,Carillion Services Ltd,Large,1201313," 5,747.29 ",Facilities Managed Services,Administration
HM Land Registry,HM Land Registry,21/12/2017,FM Ext Helpdesk,Fylde Office,Carillion Services Ltd,Large,1201313, 441.07 ,Facilities External Helpdesk,Administration
HM Land Registry,HM Land Registry,21/12/2017,Grounds Maintenance,Fylde Office,Carillion Services Ltd,Large,1201313," 1,494.11 ",Grounds Maintenance,Administration
HM Land Registry,HM Land Registry,21/12/2017,Facilities - Core Fee,Fylde Office,Carillion Services Ltd,Large,1201313," 4,216.31 ",Facilities - Core Fee,Administration
HM Land Registry,HM Land Registry,21/12/2017,Pest Control,Gloucester Computer Centre,Carillion Services Ltd,Large,1201313, 26.68 ,Pest Control,Administration
HM Land Registry,HM Land Registry,21/12/2017,Waste Disposal,Gloucester Computer Centre,Carillion Services Ltd,Large,1201313, 43.62 ,Waste Disposal,Administration
HM Land Registry,HM Land Registry,21/12/2017,Office Cleaning Expenses,Gloucester Computer Centre,Carillion Services Ltd,Large,1201313, 114.67 ,Office Cleaning Expenses,Administration
HM Land Registry,HM Land Registry,21/12/2017,Vending Machine Consumables & Repairs,Gloucester Computer Centre,Carillion Services Ltd,Large,1201313, 18.98 ,Vending Machine Consumables & Repairs,Administration
HM Land Registry,HM Land Registry,21/12/2017,Security Expenses,Gloucester Computer Centre,Carillion Services Ltd,Large,1201313," 7,590.59 ",Security Expenses,Administration
HM Land Registry,HM Land Registry,21/12/2017,FM Managed Services,Gloucester Computer Centre,Carillion Services Ltd,Large,1201313," 2,797.75 ",Facilities Managed Services,Administration
HM Land Registry,HM Land Registry,21/12/2017,FM Ext Helpdesk,Gloucester Computer Centre,Carillion Services Ltd,Large,1201313, 571.46 ,Facilities External Helpdesk,Administration
HM Land Registry,HM Land Registry,21/12/2017,Grounds Maintenance,Gloucester Computer Centre,Carillion Services Ltd,Large,1201313, 90.42 ,Grounds Maintenance,Administration
HM Land Registry,HM Land Registry,21/12/2017,Facilities - Core Fee,Gloucester Computer Centre,Carillion Services Ltd,Large,1201313," 8,198.46 ",Facilities - Core Fee,Administration
HM Land Registry,HM Land Registry,21/12/2017,Pest Control,Gloucester Office,Carillion Services Ltd,Large,1201313, 73.36 ,Pest Control,Administration
HM Land Registry,HM Land Registry,21/12/2017,Waste Disposal,Gloucester Office,Carillion Services Ltd,Large,1201313, 237.87 ,Waste Disposal,Administration
HM Land Registry,HM Land Registry,21/12/2017,Office Cleaning Expenses,Gloucester Office,Carillion Services Ltd,Large,1201313," 6,729.81 ",Office Cleaning Expenses,Administration
HM Land Registry,HM Land Registry,21/12/2017,Vending Machine Consumables & Repairs,Gloucester Office,Carillion Services Ltd,Large,1201313, 136.49 ,Vending Machine Consumables & Repairs,Administration
HM Land Registry,HM Land Registry,21/12/2017,Security Expenses,Gloucester Office,Carillion Services Ltd,Large,1201313," 9,013.84 ",Security Expenses,Administration
HM Land Registry,HM Land Registry,21/12/2017,FM Managed Services,Gloucester Office,Carillion Services Ltd,Large,1201313," 3,275.82 ",Facilities Managed Services,Administration
HM Land Registry,HM Land Registry,21/12/2017,FM Ext Helpdesk,Gloucester Office,Carillion Services Ltd,Large,1201313, 611.86 ,Facilities External Helpdesk,Administration
HM Land Registry,HM Land Registry,21/12/2017,Grounds Maintenance,Gloucester Office,Carillion Services Ltd,Large,1201313, 611.46 ,Grounds Maintenance,Administration
HM Land Registry,HM Land Registry,21/12/2017,Facilities - Core Fee,Gloucester Office,Carillion Services Ltd,Large,1201313," 3,757.97 ",Facilities - Core Fee,Administration
HM Land Registry,HM Land Registry,21/12/2017,Pest Control,Hull Office,Carillion Services Ltd,Large,1201313, 46.64 ,Pest Control,Administration
HM Land Registry,HM Land Registry,21/12/2017,Waste Disposal,Hull Office,Carillion Services Ltd,Large,1201313, 179.44 ,Waste Disposal,Administration
HM Land Registry,HM Land Registry,21/12/2017,Office Cleaning Expenses,Hull Office,Carillion Services Ltd,Large,1201313," 3,780.24 ",Office Cleaning Expenses,Administration
HM Land Registry,HM Land Registry,21/12/2017,Vending Machine Consumables & Repairs,Hull Office,Carillion Services Ltd,Large,1201313, 328.29 ,Vending Machine Consumables & Repairs,Administration
HM Land Registry,HM Land Registry,21/12/2017,Security Expenses,Hull Office,Carillion Services Ltd,Large,1201313," 2,774.10 ",Security Expenses,Administration
HM Land Registry,HM Land Registry,21/12/2017,FM Managed Services,Hull Office,Carillion Services Ltd,Large,1201313," 5,577.91 ",Facilities Managed Services,Administration
HM Land Registry,HM Land Registry,21/12/2017,FM Ext Helpdesk,Hull Office,Carillion Services Ltd,Large,1201313, 489.10 ,Facilities External Helpdesk,Administration
HM Land Registry,HM Land Registry,21/12/2017,Grounds Maintenance,Hull Office,Carillion Services Ltd,Large,1201313, 611.46 ,Grounds Maintenance,Administration
HM Land Registry,HM Land Registry,21/12/2017,Facilities - Core Fee,Hull Office,Carillion Services Ltd,Large,1201313," 6,786.69 ",Facilities - Core Fee,Administration
HM Land Registry,HM Land Registry,21/12/2017,Pest Control,Leicester Office,Carillion Services Ltd,Large,1201313, 36.90 ,Pest Control,Administration
HM Land Registry,HM Land Registry,21/12/2017,Waste Disposal,Leicester Office,Carillion Services Ltd,Large,1201313, 259.55 ,Waste Disposal,Administration
HM Land Registry,HM Land Registry,21/12/2017,Office Cleaning Expenses,Leicester Office,Carillion Services Ltd,Large,1201313," 2,275.93 ",Office Cleaning Expenses,Administration
HM Land Registry,HM Land Registry,21/12/2017,Vending Machine Consumables & Repairs,Leicester Office,Carillion Services Ltd,Large,1201313, 109.81 ,Vending Machine Consumables & Repairs,Administration
HM Land Registry,HM Land Registry,21/12/2017,Security Expenses,Leicester Office,Carillion Services Ltd,Large,1201313," 2,683.41 ",Security Expenses,Administration
HM Land Registry,HM Land Registry,21/12/2017,FM Managed Services,Leicester Office,Carillion Services Ltd,Large,1201313," 4,124.56 ",Facilities Managed Services,Administration
HM Land Registry,HM Land Registry,21/12/2017,FM Ext Helpdesk,Leicester Office,Carillion Services Ltd,Large,1201313, 517.46 ,Facilities External Helpdesk,Administration
HM Land Registry,HM Land Registry,21/12/2017,Grounds Maintenance,Leicester Office,Carillion Services Ltd,Large,1201313, 128.71 ,Grounds Maintenance,Administration
HM Land Registry,HM Land Registry,21/12/2017,Facilities - Core Fee,Leicester Office,Carillion Services Ltd,Large,1201313," 9,260.43 ",Facilities - Core Fee,Administration
HM Land Registry,HM Land Registry,21/12/2017,Pest Control,Nottingham Office,Carillion Services Ltd,Large,1201313, 126.01 ,Pest Control,Administration
HM Land Registry,HM Land Registry,21/12/2017,Waste Disposal,Nottingham Office,Carillion Services Ltd,Large,1201313, 319.12 ,Waste Disposal,Administration
HM Land Registry,HM Land Registry,21/12/2017,Office Cleaning Expenses,Nottingham Office,Carillion Services Ltd,Large,1201313," 5,693.27 ",Office Cleaning Expenses,Administration
HM Land Registry,HM Land Registry,21/12/2017,Vending Machine Consumables & Repairs,Nottingham Office,Carillion Services Ltd,Large,1201313, 122.74 ,Vending Machine Consumables & Repairs,Administration
HM Land Registry,HM Land Registry,21/12/2017,Security Expenses,Nottingham Office,Carillion Services Ltd,Large,1201313," 3,167.78 ",Security Expenses,Administration
HM Land Registry,HM Land Registry,21/12/2017,FM Managed Services,Nottingham Office,Carillion Services Ltd,Large,1201313," 10,685.05 ",Facilities Managed Services,Administration
HM Land Registry,HM Land Registry,21/12/2017,FM Ext Helpdesk,Nottingham Office,Carillion Services Ltd,Large,1201313," 1,777.10 ",Facilities External Helpdesk,Administration
HM Land Registry,HM Land Registry,21/12/2017,Grounds Maintenance,Nottingham Office,Carillion Services Ltd,Large,1201313, 310.00 ,Grounds Maintenance,Administration
HM Land Registry,HM Land Registry,21/12/2017,Facilities - Core Fee,Nottingham Office,Carillion Services Ltd,Large,1201313," 6,418.03 ",Facilities - Core Fee,Administration
HM Land Registry,HM Land Registry,21/12/2017,Pest Control,Peterborough Office,Carillion Services Ltd,Large,1201313, 38.39 ,Pest Control,Administration
HM Land Registry,HM Land Registry,21/12/2017,Office Cleaning Expenses,Peterborough Office,Carillion Services Ltd,Large,1201313, 820.38 ,Office Cleaning Expenses,Administration
HM Land Registry,HM Land Registry,21/12/2017,FM Managed Services,Peterborough Office,Carillion Services Ltd,Large,1201313," 5,384.86 ",Facilities Managed Services,Administration
HM Land Registry,HM Land Registry,21/12/2017,FM Ext Helpdesk,Peterborough Office,Carillion Services Ltd,Large,1201313, 622.51 ,Facilities External Helpdesk,Administration
HM Land Registry,HM Land Registry,21/12/2017,Facilities - Core Fee,Peterborough Office,Carillion Services Ltd,Large,1201313," 3,667.29 ",Facilities - Core Fee,Administration
HM Land Registry,HM Land Registry,21/12/2017,Pest Control,Telford Office,Carillion Services Ltd,Large,1201313, 41.90 ,Pest Control,Administration
HM Land Registry,HM Land Registry,21/12/2017,Waste Disposal,Telford Office,Carillion Services Ltd,Large,1201313, 229.52 ,Waste Disposal,Administration
HM Land Registry,HM Land Registry,21/12/2017,Office Cleaning Expenses,Telford Office,Carillion Services Ltd,Large,1201313," 5,989.56 ",Office Cleaning Expenses,Administration
HM Land Registry,HM Land Registry,21/12/2017,Vending Machine Consumables & Repairs,Telford Office,Carillion Services Ltd,Large,1201313, 187.46 ,Vending Machine Consumables & Repairs,Administration
HM Land Registry,HM Land Registry,21/12/2017,Security Expenses,Telford Office,Carillion Services Ltd,Large,1201313," 2,728.38 ",Security Expenses,Administration
HM Land Registry,HM Land Registry,21/12/2017,FM Managed Services,Telford Office,Carillion Services Ltd,Large,1201313," 6,032.59 ",Facilities Managed Services,Administration
HM Land Registry,HM Land Registry,21/12/2017,FM Ext Helpdesk,Telford Office,Carillion Services Ltd,Large,1201313, 642.31 ,Facilities External Helpdesk,Administration
HM Land Registry,HM Land Registry,21/12/2017,Grounds Maintenance,Telford Office,Carillion Services Ltd,Large,1201313," 1,053.73 ",Grounds Maintenance,Administration
HM Land Registry,HM Land Registry,21/12/2017,Facilities - Core Fee,Telford Office,Carillion Services Ltd,Large,1201313," 6,542.91 ",Facilities - Core Fee,Administration
HM Land Registry,HM Land Registry,21/12/2017,Pest Control,Wales Office,Carillion Services Ltd,Large,1201313, 61.66 ,Pest Control,Administration
HM Land Registry,HM Land Registry,21/12/2017,Waste Disposal,Wales Office,Carillion Services Ltd,Large,1201313, 529.77 ,Waste Disposal,Administration
HM Land Registry,HM Land Registry,21/12/2017,Office Cleaning Expenses,Wales Office,Carillion Services Ltd,Large,1201313," 6,081.87 ",Office Cleaning Expenses,Administration
HM Land Registry,HM Land Registry,21/12/2017,Vending Machine Consumables & Repairs,Wales Office,Carillion Services Ltd,Large,1201313, 183.78 ,Vending Machine Consumables & Repairs,Administration
HM Land Registry,HM Land Registry,21/12/2017,Security Expenses,Wales Office,Carillion Services Ltd,Large,1201313," 2,482.60 ",Security Expenses,Administration
HM Land Registry,HM Land Registry,21/12/2017,FM Managed Services,Wales Office,Carillion Services Ltd,Large,1201313," 5,800.14 ",Facilities Managed Services,Administration
HM Land Registry,HM Land Registry,21/12/2017,FM Ext Helpdesk,Wales Office,Carillion Services Ltd,Large,1201313, 528.60 ,Facilities External Helpdesk,Administration
HM Land Registry,HM Land Registry,21/12/2017,Grounds Maintenance,Wales Office,Carillion Services Ltd,Large,1201313, 453.64 ,Grounds Maintenance,Administration
HM Land Registry,HM Land Registry,21/12/2017,Facilities - Core Fee,Wales Office,Carillion Services Ltd,Large,1201313," 3,907.59 ",Facilities - Core Fee,Administration
HM Land Registry,HM Land Registry,21/12/2017,Pest Control,Weymouth Office,Carillion Services Ltd,Large,1201313, 39.03 ,Pest Control,Administration
HM Land Registry,HM Land Registry,21/12/2017,Waste Disposal,Weymouth Office,Carillion Services Ltd,Large,1201313, 296.48 ,Waste Disposal,Administration
HM Land Registry,HM Land Registry,21/12/2017,Office Cleaning Expenses,Weymouth Office,Carillion Services Ltd,Large,1201313," 4,360.58 ",Office Cleaning Expenses,Administration
HM Land Registry,HM Land Registry,21/12/2017,Vending Machine Consumables & Repairs,Weymouth Office,Carillion Services Ltd,Large,1201313, 106.37 ,Vending Machine Consumables & Repairs,Administration
HM Land Registry,HM Land Registry,21/12/2017,Security Expenses,Weymouth Office,Carillion Services Ltd,Large,1201313," 2,734.56 ",Security Expenses,Administration
HM Land Registry,HM Land Registry,21/12/2017,FM Managed Services,Weymouth Office,Carillion Services Ltd,Large,1201313," 5,546.80 ",Facilities Managed Services,Administration
HM Land Registry,HM Land Registry,21/12/2017,FM Ext Helpdesk,Weymouth Office,Carillion Services Ltd,Large,1201313, 396.50 ,Facilities External Helpdesk,Administration
HM Land Registry,HM Land Registry,21/12/2017,Grounds Maintenance,Weymouth Office,Carillion Services Ltd,Large,1201313, 704.77 ,Grounds Maintenance,Administration
HM Land Registry,HM Land Registry,21/12/2017,Facilities - Core Fee,Weymouth Office,Carillion Services Ltd,Large,1201313," 2,902.79 ",Facilities - Core Fee,Administration
HM Land Registry,HM Land Registry,07/12/2017,Software as a Service (Cloud),Dir: Finance,CGI IT UK Limited,Large,1199640," 41,561.75 ",Cloud Computing Services,Administration
HM Land Registry,HM Land Registry,07/12/2017,Computer Equipment Maintenance,IS Service Delivery,CGI IT UK Limited,Large,1199791," 61,500.00 ",Computer Equipment Maintenance,Administration
HM Land Registry,HM Land Registry,11/12/2017,Software as a Service (Cloud),Dir: Finance,CGI IT UK Limited,Large,1199792," 23,370.01 ",Cloud Computing Services,Administration
HM Land Registry,HM Land Registry,21/12/2017,Rates Payable,Wales Office,City & County of Swansea,Large,1176720," 22,580.00 ",Rates Payable,Administration
HM Land Registry,HM Land Registry,21/12/2017,Computer Equipment Hire,IS Service Delivery,Computer Associates UK Limited,Large,1201375," 382,858.80 ",Computer Equipment Hire,Administration
HM Land Registry,HM Land Registry,06/12/2017,Computer Equipment Non HP Licences,Dir: (Statutory) Digital Services,Datrix Ltd,SME,1197498," 18,104.77 ",Computer Equipment Non HP Licences,Administration
HM Land Registry,HM Land Registry,06/12/2017,Professional Services,Dir: (Statutory) Digital Services,Datrix Ltd,SME,1197498," 25,200.00 ",Professional Services,Administration
HM Land Registry,HM Land Registry,21/12/2017,Rates Payable,Durham Office,Durham County Council,Large,1176070," 28,213.00 ",Rates Payable,Administration
HM Land Registry,HM Land Registry,07/12/2017,Computer Equipment Maintenance,IS Service Delivery,EntCorp UK Ltd,Large,1199799," 76,509.00 ",Computer Equipment Maintenance,Administration
HM Land Registry,HM Land Registry,01/12/2017,Transport Hire of Cars and Vans,Central Facilities Management Team,Enterprise Rent-A-Car (UK) Ltd,Large,1199215," 22,229.80 ",Transport Hire of Cars and Vans,Administration
HM Land Registry,HM Land Registry,21/12/2017,Rates Payable,Fylde Office,Fylde Borough Council,Large,1175982," 17,124.00 ",Rates Payable,Administration
HM Land Registry,HM Land Registry,21/12/2017,Rates Payable,Gloucester Office,Gloucester City Council,Large,1175823," 28,980.00 ",Rates Payable,Administration
HM Land Registry,HM Land Registry,19/12/2017,Online Law Updated,Professional Library,Government Legal Department,Large,1201032," 103,092.00 ",Online Law Updated,Administration
HM Land Registry,HM Land Registry,15/12/2017,Assets in the Course of Construction,Balance Sheet,Kainos Software Ltd,Large,1200526," 326,354.17 ",Assets in the Course of Construction,Administration
HM Land Registry,HM Land Registry,21/12/2017,Rent Payable,Hull Office,Kingston Upon Hull City Council,Large,1177359," 12,500.00 ",Rent Payable,Administration
HM Land Registry,HM Land Registry,20/12/2017,Rent Payable,Nottingham Office,Lambert Smith Hampton,Large,1175268," 183,577.50 ",Rent Payable,Administration
HM Land Registry,HM Land Registry,21/12/2017,Rates Payable,Leicester Office,Leicester City Council,Large,1176378," 24,708.00 ",Rates Payable,Administration
HM Land Registry,HM Land Registry,20/12/2017,Rent Payable,Gloucester Office,Metrus Property Advisors Ltd,Large,1177660," 211,500.00 ",Rent Payable,Administration
HM Land Registry,HM Land Registry,21/12/2017,Rates Payable,Nottingham Office,Nottingham City Council,Large,1176596," 19,400.00 ",Rates Payable,Administration
HM Land Registry,HM Land Registry,06/12/2017,Professional Services,Program: Local Land Charges,PA Consulting Services Ltd,Large,1198191," 83,446.80 ",Professional Services,Administration
HM Land Registry,HM Land Registry,19/12/2017,Professional Services,Program: Local Land Charges,PA Consulting Services Ltd,Large,1200846," 70,512.00 ",Professional Services,Administration
HM Land Registry,HM Land Registry,21/12/2017,Rates Payable,Peterborough Office,Peterborough City Council,Large,1176069," 8,746.00 ",Rates Payable,Administration
HM Land Registry,HM Land Registry,21/12/2017,Rates Payable,Director of Information Systems,Plymouth City Council,Large,1176173," 36,385.00 ",Rates Payable,Administration
HM Land Registry,HM Land Registry,06/12/2017,Travel & Subsistence General Duty,Birkenhead Office,Redfern Travel Ltd,SME,1199609, 193.95 ,Travel & Subsistence,Administration
HM Land Registry,HM Land Registry,06/12/2017,Travel & Subsistence General Duty,Business Development,Redfern Travel Ltd,SME,1199609, 662.88 ,Travel & Subsistence,Administration
HM Land Registry,HM Land Registry,06/12/2017,Travel & Subsistence General Duty,Central Facilities Management Team,Redfern Travel Ltd,SME,1199609, 763.50 ,Travel & Subsistence,Administration
HM Land Registry,HM Land Registry,06/12/2017,Travel & Subsistence General Duty,Central Operations Group,Redfern Travel Ltd,SME,1199609, 600.65 ,Travel & Subsistence,Administration
HM Land Registry,HM Land Registry,06/12/2017,Travel & Subsistence General Duty,Chief Executives Office,Redfern Travel Ltd,SME,1199609," 1,208.70 ",Travel & Subsistence,Administration
HM Land Registry,HM Land Registry,06/12/2017,Travel & Subsistence General Duty,Commercial & Customer Strategy & Performance,Redfern Travel Ltd,SME,1199609, 13.30 ,Travel & Subsistence,Administration
HM Land Registry,HM Land Registry,06/12/2017,Travel & Subsistence General Duty,Commercial Director,Redfern Travel Ltd,SME,1199609, 828.10 ,Travel & Subsistence,Administration
HM Land Registry,HM Land Registry,06/12/2017,Travel & Subsistence General Duty,Corp Procurement,Redfern Travel Ltd,SME,1199609," 1,493.98 ",Travel & Subsistence,Administration
HM Land Registry,HM Land Registry,06/12/2017,Travel & Subsistence General Duty,Corporate Legal Services,Redfern Travel Ltd,SME,1199609, 706.15 ,Travel & Subsistence,Administration
HM Land Registry,HM Land Registry,06/12/2017,Travel & Subsistence General Duty,Coventry Office,Redfern Travel Ltd,SME,1199609, 232.10 ,Travel & Subsistence,Administration
HM Land Registry,HM Land Registry,06/12/2017,Travel & Subsistence General Duty,Croydon Office,Redfern Travel Ltd,SME,1199609, 201.20 ,Travel & Subsistence,Administration
HM Land Registry,HM Land Registry,06/12/2017,Travel & Subsistence General Duty,Data Group,Redfern Travel Ltd,SME,1199609, 550.84 ,Travel & Subsistence,Administration
HM Land Registry,HM Land Registry,06/12/2017,Travel & Subsistence General Duty,Dir: (Statutory) Digital Services,Redfern Travel Ltd,SME,1199609," 2,249.37 ",Travel & Subsistence,Administration
HM Land Registry,HM Land Registry,06/12/2017,Travel & Subsistence General Duty,Dir: Operations,Redfern Travel Ltd,SME,1199609," 2,580.54 ",Travel & Subsistence,Administration
HM Land Registry,HM Land Registry,06/12/2017,Travel & Subsistence General Duty,Director of Information Systems,Redfern Travel Ltd,SME,1199609," 2,234.03 ",Travel & Subsistence,Administration
HM Land Registry,HM Land Registry,06/12/2017,Travel & Subsistence General Duty,Director of Legal Services,Redfern Travel Ltd,SME,1199609,-72.60 ,Travel & Subsistence,Administration
HM Land Registry,HM Land Registry,06/12/2017,Travel & Subsistence General Duty,Director of Operations,Redfern Travel Ltd,SME,1199609, 402.89 ,Travel & Subsistence,Administration
HM Land Registry,HM Land Registry,06/12/2017,Travel & Subsistence General Duty,Durham Office,Redfern Travel Ltd,SME,1199609, 716.76 ,Travel & Subsistence,Administration
HM Land Registry,HM Land Registry,06/12/2017,Travel & Subsistence General Duty,Finance Group,Redfern Travel Ltd,SME,1199609, 26.30 ,Travel & Subsistence,Administration
HM Land Registry,HM Land Registry,06/12/2017,Travel & Subsistence General Duty,Guarantee & Litigation,Redfern Travel Ltd,SME,1199609, 204.50 ,Travel & Subsistence,Administration
HM Land Registry,HM Land Registry,06/12/2017,Travel & Subsistence General Duty,HR Group,Redfern Travel Ltd,SME,1199609," 3,443.89 ",Travel & Subsistence,Administration
HM Land Registry,HM Land Registry,06/12/2017,Travel & Subsistence General Duty,Hull Office,Redfern Travel Ltd,SME,1199609, 139.80 ,Travel & Subsistence,Administration
HM Land Registry,HM Land Registry,06/12/2017,Travel & Subsistence General Duty,Leicester Office,Redfern Travel Ltd,SME,1199609, 37.60 ,Travel & Subsistence,Administration
HM Land Registry,HM Land Registry,06/12/2017,Travel & Subsistence General Duty,Local Land Charges,Redfern Travel Ltd,SME,1199609," 2,544.56 ",Travel & Subsistence,Administration
HM Land Registry,HM Land Registry,06/12/2017,Travel & Subsistence General Duty,Local Lawyer Group,Redfern Travel Ltd,SME,1199609, 818.10 ,Travel & Subsistence,Administration
HM Land Registry,HM Land Registry,06/12/2017,Travel & Subsistence General Duty,Marketing Services Team,Redfern Travel Ltd,SME,1199609, 234.20 ,Travel & Subsistence,Administration
HM Land Registry,HM Land Registry,06/12/2017,Travel & Subsistence General Duty,Nottingham Office,Redfern Travel Ltd,SME,1199609, 38.80 ,Travel & Subsistence,Administration
HM Land Registry,HM Land Registry,06/12/2017,Travel & Subsistence General Duty,Peterborough Office,Redfern Travel Ltd,SME,1199609, 120.50 ,Travel & Subsistence,Administration
HM Land Registry,HM Land Registry,06/12/2017,Travel & Subsistence General Duty,Plymouth Office,Redfern Travel Ltd,SME,1199609, 311.40 ,Travel & Subsistence,Administration
HM Land Registry,HM Land Registry,06/12/2017,Travel & Subsistence General Duty,Product Development & Management,Redfern Travel Ltd,SME,1199609," 2,342.54 ",Travel & Subsistence,Administration
HM Land Registry,HM Land Registry,06/12/2017,Travel & Subsistence General Duty,Program: Local Land Charges,Redfern Travel Ltd,SME,1199609," 2,073.17 ",Travel & Subsistence,Administration
HM Land Registry,HM Land Registry,06/12/2017,Travel & Subsistence General Duty,Projects and Programme Centre,Redfern Travel Ltd,SME,1199609," 1,310.30 ",Travel & Subsistence,Administration
HM Land Registry,HM Land Registry,06/12/2017,Travel & Subsistence General Duty,Property Asset Management Group,Redfern Travel Ltd,SME,1199609," 1,190.32 ",Travel & Subsistence,Administration
HM Land Registry,HM Land Registry,06/12/2017,Travel & Subsistence General Duty,Research & Data Mining,Redfern Travel Ltd,SME,1199609, 586.40 ,Travel & Subsistence,Administration
HM Land Registry,HM Land Registry,06/12/2017,Travel & Subsistence Overseas Travel,Research & Data Mining,Redfern Travel Ltd,SME,1199609, 171.20 ,Travel & Subsistence,Administration
HM Land Registry,HM Land Registry,06/12/2017,Travel & Subsistence General Duty,Strategy Team,Redfern Travel Ltd,SME,1199609, 397.35 ,Travel & Subsistence,Administration
HM Land Registry,HM Land Registry,06/12/2017,Travel & Subsistence General Duty,Telford Office,Redfern Travel Ltd,SME,1199609, 445.00 ,Travel & Subsistence,Administration
HM Land Registry,HM Land Registry,06/12/2017,Travel & Subsistence General Duty,Wales Office,Redfern Travel Ltd,SME,1199609," 1,078.20 ",Travel & Subsistence,Administration
HM Land Registry,HM Land Registry,06/12/2017,Travel & Subsistence General Duty,Weymouth Office,Redfern Travel Ltd,SME,1199609, 323.00 ,Travel & Subsistence,Administration
HM Land Registry,HM Land Registry,06/12/2017,Travel & Subsistence General Duty,Dir: Finance,Redfern Travel Ltd,SME,1199609," 2,141.58 ",Travel & Subsistence,Administration
HM Land Registry,HM Land Registry,06/12/2017,Travel & Subsistence General Duty,Registration Legal Services Group,Redfern Travel Ltd,SME,1199609, 232.80 ,Travel & Subsistence,Administration
HM Land Registry,HM Land Registry,06/12/2017,Travel & Subsistence General Duty,Communications Team,Redfern Travel Ltd,SME,1199609, 315.70 ,Travel & Subsistence,Administration
HM Land Registry,HM Land Registry,06/12/2017,Travel & Subsistence Overseas Travel,International Relations,Redfern Travel Ltd,SME,1199609, 0.60 ,Travel & Subsistence,Administration
HM Land Registry,HM Land Registry,06/12/2017,Travel & Subsistence General Duty,International Business Development,Redfern Travel Ltd,SME,1199609, 172.10 ,Travel & Subsistence,Administration
HM Land Registry,HM Land Registry,06/12/2017,Travel & Subsistence General Duty,Internal Audit,Redfern Travel Ltd,SME,1199609, 211.00 ,Travel & Subsistence,Administration
HM Land Registry,HM Land Registry,06/12/2017,Travel & Subsistence General Duty,Operations Assurance and Risk,Redfern Travel Ltd,SME,1199609, 544.69 ,Travel & Subsistence,Administration
HM Land Registry,HM Land Registry,06/12/2017,Travel & Subsistence General Duty,Local Lawyer Support Group,Redfern Travel Ltd,SME,1199609, 60.60 ,Travel & Subsistence,Administration
HM Land Registry,HM Land Registry,06/12/2017,Travel & Subsistence General Duty,Customer Services,Redfern Travel Ltd,SME,1199609, 540.60 ,Travel & Subsistence,Administration
HM Land Registry,HM Land Registry,06/12/2017,Travel & Subsistence General Duty,Operation Focus,Redfern Travel Ltd,SME,1199609, 217.20 ,Travel & Subsistence,Administration
HM Land Registry,HM Land Registry,06/12/2017,Travel & Subsistence General Duty,Independent Complaints Reviewer,Redfern Travel Ltd,SME,1199609, 85.60 ,Travel & Subsistence,Administration
HM Land Registry,HM Land Registry,18/12/2017,Assets in the Course of Construction,Balance Sheet,Redfern Travel Ltd,SME,1201021, 132.60 ,Assets in the Course of Construction,Administration
HM Land Registry,HM Land Registry,18/12/2017,Travel & Subsistence General Duty,Birkenhead Office,Redfern Travel Ltd,SME,1201021, 213.00 ,Travel & Subsistence,Administration
HM Land Registry,HM Land Registry,18/12/2017,Travel & Subsistence General Duty,Business Development,Redfern Travel Ltd,SME,1201021," 1,120.22 ",Travel & Subsistence,Administration
HM Land Registry,HM Land Registry,18/12/2017,Travel & Subsistence General Duty,Central Facilities Management Team,Redfern Travel Ltd,SME,1201021," 2,510.98 ",Travel & Subsistence,Administration
HM Land Registry,HM Land Registry,18/12/2017,Travel & Subsistence General Duty,Central Operations Group,Redfern Travel Ltd,SME,1201021," 1,150.60 ",Travel & Subsistence,Administration
HM Land Registry,HM Land Registry,18/12/2017,Travel & Subsistence General Duty,Chief Executives Office,Redfern Travel Ltd,SME,1201021, 629.05 ,Travel & Subsistence,Administration
HM Land Registry,HM Land Registry,18/12/2017,Travel & Subsistence General Duty,Commercial & Customer Strategy & Performance,Redfern Travel Ltd,SME,1201021, 79.50 ,Travel & Subsistence,Administration
HM Land Registry,HM Land Registry,18/12/2017,Travel & Subsistence General Duty,Commercial Director,Redfern Travel Ltd,SME,1201021," 1,720.88 ",Travel & Subsistence,Administration
HM Land Registry,HM Land Registry,18/12/2017,Travel & Subsistence General Duty,Corp Procurement,Redfern Travel Ltd,SME,1201021, 656.90 ,Travel & Subsistence,Administration
HM Land Registry,HM Land Registry,18/12/2017,Travel & Subsistence General Duty,Corporate Legal Services,Redfern Travel Ltd,SME,1201021, 823.70 ,Travel & Subsistence,Administration
HM Land Registry,HM Land Registry,18/12/2017,Travel & Subsistence Dual Workplace,Corporate Legal Services,Redfern Travel Ltd,SME,1201021, 27.50 ,Travel & Subsistence,Administration
HM Land Registry,HM Land Registry,18/12/2017,Travel & Subsistence General Duty,Coventry Office,Redfern Travel Ltd,SME,1201021, 666.37 ,Travel & Subsistence,Administration
HM Land Registry,HM Land Registry,18/12/2017,Travel & Subsistence General Duty,Croydon Office,Redfern Travel Ltd,SME,1201021, 48.41 ,Travel & Subsistence,Administration
HM Land Registry,HM Land Registry,18/12/2017,Travel & Subsistence General Duty,Data Group,Redfern Travel Ltd,SME,1201021," 1,453.13 ",Travel & Subsistence,Administration
HM Land Registry,HM Land Registry,18/12/2017,Travel & Subsistence General Duty,Dir: (Statutory) Digital Services,Redfern Travel Ltd,SME,1201021," 3,023.56 ",Travel & Subsistence,Administration
HM Land Registry,HM Land Registry,18/12/2017,Travel & Subsistence General Duty,Dir: Operations,Redfern Travel Ltd,SME,1201021," 1,180.36 ",Travel & Subsistence,Administration
HM Land Registry,HM Land Registry,18/12/2017,Travel & Subsistence General Duty,Director of Information Systems,Redfern Travel Ltd,SME,1201021," 2,323.71 ",Travel & Subsistence,Administration
HM Land Registry,HM Land Registry,18/12/2017,Travel & Subsistence General Duty,Director of Operations,Redfern Travel Ltd,SME,1201021, 867.70 ,Travel & Subsistence,Administration
HM Land Registry,HM Land Registry,18/12/2017,Travel & Subsistence General Duty,Durham Office,Redfern Travel Ltd,SME,1201021, 472.30 ,Travel & Subsistence,Administration
HM Land Registry,HM Land Registry,18/12/2017,Travel & Subsistence General Duty,Finance Group,Redfern Travel Ltd,SME,1201021, 198.55 ,Travel & Subsistence,Administration
HM Land Registry,HM Land Registry,18/12/2017,Travel & Subsistence General Duty,Forward Scanning,Redfern Travel Ltd,SME,1201021, 165.80 ,Travel & Subsistence,Administration
HM Land Registry,HM Land Registry,18/12/2017,Travel & Subsistence General Duty,Fylde Office,Redfern Travel Ltd,SME,1201021, 194.55 ,Travel & Subsistence,Administration
HM Land Registry,HM Land Registry,18/12/2017,Travel & Subsistence General Duty,Guarantee & Litigation,Redfern Travel Ltd,SME,1201021, 56.40 ,Travel & Subsistence,Administration
HM Land Registry,HM Land Registry,18/12/2017,Travel & Subsistence General Duty,HR Group,Redfern Travel Ltd,SME,1201021," 2,423.12 ",Travel & Subsistence,Administration
HM Land Registry,HM Land Registry,18/12/2017,Travel & Subsistence General Duty,Hull Office,Redfern Travel Ltd,SME,1201021, 452.20 ,Travel & Subsistence,Administration
HM Land Registry,HM Land Registry,18/12/2017,Travel & Subsistence General Duty,Leicester Office,Redfern Travel Ltd,SME,1201021, 66.90 ,Travel & Subsistence,Administration
HM Land Registry,HM Land Registry,18/12/2017,Travel & Subsistence General Duty,Local Land Charges,Redfern Travel Ltd,SME,1201021," 1,920.25 ",Travel & Subsistence,Administration
HM Land Registry,HM Land Registry,18/12/2017,Travel & Subsistence General Duty,Local Lawyer Group,Redfern Travel Ltd,SME,1201021," 1,060.85 ",Travel & Subsistence,Administration
HM Land Registry,HM Land Registry,18/12/2017,Travel & Subsistence Overseas Travel,Local Lawyer Group,Redfern Travel Ltd,SME,1201021,-222.80 ,Travel & Subsistence,Administration
HM Land Registry,HM Land Registry,18/12/2017,Travel & Subsistence General Duty,Nottingham Office,Redfern Travel Ltd,SME,1201021, 223.50 ,Travel & Subsistence,Administration
HM Land Registry,HM Land Registry,18/12/2017,Travel & Subsistence General Duty,Peterborough Office,Redfern Travel Ltd,SME,1201021, 415.90 ,Travel & Subsistence,Administration
HM Land Registry,HM Land Registry,18/12/2017,Travel & Subsistence General Duty,Plymouth Office,Redfern Travel Ltd,SME,1201021, 343.60 ,Travel & Subsistence,Administration
HM Land Registry,HM Land Registry,18/12/2017,Travel & Subsistence General Duty,Product Development & Management,Redfern Travel Ltd,SME,1201021," 2,402.50 ",Travel & Subsistence,Administration
HM Land Registry,HM Land Registry,18/12/2017,Travel & Subsistence General Duty,Program: Local Land Charges,Redfern Travel Ltd,SME,1201021," 2,737.11 ",Travel & Subsistence,Administration
HM Land Registry,HM Land Registry,18/12/2017,Travel & Subsistence General Duty,Projects and Programme Centre,Redfern Travel Ltd,SME,1201021," 1,937.10 ",Travel & Subsistence,Administration
HM Land Registry,HM Land Registry,18/12/2017,Travel & Subsistence General Duty,Property Asset Management Group,Redfern Travel Ltd,SME,1201021, 418.20 ,Travel & Subsistence,Administration
HM Land Registry,HM Land Registry,18/12/2017,Travel & Subsistence General Duty,Research & Data Mining,Redfern Travel Ltd,SME,1201021, 120.40 ,Travel & Subsistence,Administration
HM Land Registry,HM Land Registry,18/12/2017,Travel & Subsistence General Duty,Strategy Team,Redfern Travel Ltd,SME,1201021, 515.50 ,Travel & Subsistence,Administration
HM Land Registry,HM Land Registry,18/12/2017,Travel & Subsistence General Duty,Telford Office,Redfern Travel Ltd,SME,1201021, 225.80 ,Travel & Subsistence,Administration
HM Land Registry,HM Land Registry,18/12/2017,Travel & Subsistence General Duty,Wales Office,Redfern Travel Ltd,SME,1201021, 320.40 ,Travel & Subsistence,Administration
HM Land Registry,HM Land Registry,18/12/2017,Travel & Subsistence General Duty,Weymouth Office,Redfern Travel Ltd,SME,1201021, 0.60 ,Travel & Subsistence,Administration
HM Land Registry,HM Land Registry,18/12/2017,Travel & Subsistence General Duty,Dir: Finance,Redfern Travel Ltd,SME,1201021, 827.25 ,Travel & Subsistence,Administration
HM Land Registry,HM Land Registry,18/12/2017,Travel & Subsistence General Duty,Registration Legal Services Group,Redfern Travel Ltd,SME,1201021, 139.50 ,Travel & Subsistence,Administration
HM Land Registry,HM Land Registry,18/12/2017,Travel & Subsistence General Duty,Communications Team,Redfern Travel Ltd,SME,1201021, 394.30 ,Travel & Subsistence,Administration
HM Land Registry,HM Land Registry,18/12/2017,Travel & Subsistence Overseas Travel,International Relations,Redfern Travel Ltd,SME,1201021, 569.04 ,Travel & Subsistence,Administration
HM Land Registry,HM Land Registry,18/12/2017,Travel & Subsistence General Duty,International Business Development,Redfern Travel Ltd,SME,1201021, 229.70 ,Travel & Subsistence,Administration
HM Land Registry,HM Land Registry,18/12/2017,Travel & Subsistence General Duty,Diversity,Redfern Travel Ltd,SME,1201021, 104.40 ,Travel & Subsistence,Administration
HM Land Registry,HM Land Registry,18/12/2017,Travel & Subsistence General Duty,Internal Audit,Redfern Travel Ltd,SME,1201021, 68.30 ,Travel & Subsistence,Administration
HM Land Registry,HM Land Registry,18/12/2017,Travel & Subsistence General Duty,Operations Assurance and Risk,Redfern Travel Ltd,SME,1201021, 305.58 ,Travel & Subsistence,Administration
HM Land Registry,HM Land Registry,18/12/2017,Travel & Subsistence General Duty,Local Lawyer Support Group,Redfern Travel Ltd,SME,1201021, 221.56 ,Travel & Subsistence,Administration
HM Land Registry,HM Land Registry,18/12/2017,Travel & Subsistence General Duty,Customer Services,Redfern Travel Ltd,SME,1201021," 1,397.60 ",Travel & Subsistence,Administration
HM Land Registry,HM Land Registry,18/12/2017,Travel & Subsistence General Duty,Operation Focus,Redfern Travel Ltd,SME,1201021, 279.19 ,Travel & Subsistence,Administration
HM Land Registry,HM Land Registry,19/12/2017,Travel & Subsistence General Duty,Birkenhead Office,Redfern Travel Ltd,SME,1201181, 271.45 ,Travel & Subsistence,Administration
HM Land Registry,HM Land Registry,19/12/2017,Travel & Subsistence General Duty,Business Development,Redfern Travel Ltd,SME,1201181, 260.23 ,Travel & Subsistence,Administration
HM Land Registry,HM Land Registry,19/12/2017,Travel & Subsistence General Duty,Central Facilities Management Team,Redfern Travel Ltd,SME,1201181, 734.85 ,Travel & Subsistence,Administration
HM Land Registry,HM Land Registry,19/12/2017,Travel & Subsistence General Duty,Central Operations Group,Redfern Travel Ltd,SME,1201181, 924.60 ,Travel & Subsistence,Administration
HM Land Registry,HM Land Registry,19/12/2017,Travel & Subsistence General Duty,Chief Executives Office,Redfern Travel Ltd,SME,1201181, 918.70 ,Travel & Subsistence,Administration
HM Land Registry,HM Land Registry,19/12/2017,Travel & Subsistence General Duty,Commercial Director,Redfern Travel Ltd,SME,1201181, 522.70 ,Travel & Subsistence,Administration
HM Land Registry,HM Land Registry,19/12/2017,Travel & Subsistence General Duty,Corp Procurement,Redfern Travel Ltd,SME,1201181, 376.85 ,Travel & Subsistence,Administration
HM Land Registry,HM Land Registry,19/12/2017,Travel & Subsistence General Duty,Corporate Legal Services,Redfern Travel Ltd,SME,1201181, 659.27 ,Travel & Subsistence,Administration
HM Land Registry,HM Land Registry,19/12/2017,Travel & Subsistence General Duty,Coventry Office,Redfern Travel Ltd,SME,1201181, 66.85 ,Travel & Subsistence,Administration
HM Land Registry,HM Land Registry,19/12/2017,Travel & Subsistence General Duty,Croydon Office,Redfern Travel Ltd,SME,1201181,-44.88 ,Travel & Subsistence,Administration
HM Land Registry,HM Land Registry,19/12/2017,Travel & Subsistence General Duty,Data Group,Redfern Travel Ltd,SME,1201181," 2,031.98 ",Travel & Subsistence,Administration
HM Land Registry,HM Land Registry,19/12/2017,Travel & Subsistence General Duty,Dir: (Statutory) Digital Services,Redfern Travel Ltd,SME,1201181," 1,135.89 ",Travel & Subsistence,Administration
HM Land Registry,HM Land Registry,19/12/2017,Travel & Subsistence General Duty,Dir: Operations,Redfern Travel Ltd,SME,1201181, 153.45 ,Travel & Subsistence,Administration
HM Land Registry,HM Land Registry,19/12/2017,Travel & Subsistence General Duty,Director of Information Systems,Redfern Travel Ltd,SME,1201181," 1,736.26 ",Travel & Subsistence,Administration
HM Land Registry,HM Land Registry,19/12/2017,Travel & Subsistence General Duty,Director of Operations,Redfern Travel Ltd,SME,1201181, 493.29 ,Travel & Subsistence,Administration
HM Land Registry,HM Land Registry,19/12/2017,Travel & Subsistence General Duty,Durham Office,Redfern Travel Ltd,SME,1201181, 35.40 ,Travel & Subsistence,Administration
HM Land Registry,HM Land Registry,19/12/2017,Travel & Subsistence General Duty,Finance Group,Redfern Travel Ltd,SME,1201181, 302.65 ,Travel & Subsistence,Administration
HM Land Registry,HM Land Registry,19/12/2017,Travel & Subsistence General Duty,Forward Scanning,Redfern Travel Ltd,SME,1201181, 2.40 ,Travel & Subsistence,Administration
HM Land Registry,HM Land Registry,19/12/2017,Travel & Subsistence General Duty,Fylde Office,Redfern Travel Ltd,SME,1201181, 117.70 ,Travel & Subsistence,Administration
HM Land Registry,HM Land Registry,19/12/2017,Travel & Subsistence General Duty,Gloucester Office,Redfern Travel Ltd,SME,1201181, 58.85 ,Travel & Subsistence,Administration
HM Land Registry,HM Land Registry,19/12/2017,Travel & Subsistence General Duty,HR Group,Redfern Travel Ltd,SME,1201181," 1,481.21 ",Travel & Subsistence,Administration
HM Land Registry,HM Land Registry,19/12/2017,Travel & Subsistence General Duty,Hull Office,Redfern Travel Ltd,SME,1201181, 534.65 ,Travel & Subsistence,Administration
HM Land Registry,HM Land Registry,19/12/2017,Travel & Subsistence General Duty,Leicester Office,Redfern Travel Ltd,SME,1201181, 72.45 ,Travel & Subsistence,Administration
HM Land Registry,HM Land Registry,19/12/2017,Travel & Subsistence General Duty,Local Land Charges,Redfern Travel Ltd,SME,1201181," 2,139.99 ",Travel & Subsistence,Administration
HM Land Registry,HM Land Registry,19/12/2017,Travel & Subsistence Overseas Travel,Local Land Charges,Redfern Travel Ltd,SME,1201181, 148.60 ,Travel & Subsistence,Administration
HM Land Registry,HM Land Registry,19/12/2017,Travel & Subsistence General Duty,Local Lawyer Group,Redfern Travel Ltd,SME,1201181," 1,389.65 ",Travel & Subsistence,Administration
HM Land Registry,HM Land Registry,19/12/2017,Travel & Subsistence General Duty,Marketing Services Team,Redfern Travel Ltd,SME,1201181, 107.90 ,Travel & Subsistence,Administration
HM Land Registry,HM Land Registry,19/12/2017,Travel & Subsistence General Duty,Nottingham Office,Redfern Travel Ltd,SME,1201181, 120.20 ,Travel & Subsistence,Administration
HM Land Registry,HM Land Registry,19/12/2017,Travel & Subsistence General Duty,Peterborough Office,Redfern Travel Ltd,SME,1201181, 138.10 ,Travel & Subsistence,Administration
HM Land Registry,HM Land Registry,19/12/2017,Travel & Subsistence General Duty,Plymouth Office,Redfern Travel Ltd,SME,1201181, 58.85 ,Travel & Subsistence,Administration
HM Land Registry,HM Land Registry,19/12/2017,Travel & Subsistence General Duty,Product Development & Management,Redfern Travel Ltd,SME,1201181," 1,118.92 ",Travel & Subsistence,Administration
HM Land Registry,HM Land Registry,19/12/2017,Travel & Subsistence General Duty,Program: Local Land Charges,Redfern Travel Ltd,SME,1201181," 3,808.27 ",Travel & Subsistence,Administration
HM Land Registry,HM Land Registry,19/12/2017,Travel & Subsistence General Duty,Projects and Programme Centre,Redfern Travel Ltd,SME,1201181," 1,026.80 ",Travel & Subsistence,Administration
HM Land Registry,HM Land Registry,19/12/2017,Travel & Subsistence General Duty,Property Asset Management Group,Redfern Travel Ltd,SME,1201181, 162.30 ,Travel & Subsistence,Administration
HM Land Registry,HM Land Registry,19/12/2017,Travel & Subsistence General Duty,Research & Data Mining,Redfern Travel Ltd,SME,1201181,-44.50 ,Travel & Subsistence,Administration
HM Land Registry,HM Land Registry,19/12/2017,Travel & Subsistence General Duty,Strategy Team,Redfern Travel Ltd,SME,1201181, 474.04 ,Travel & Subsistence,Administration
HM Land Registry,HM Land Registry,19/12/2017,Travel & Subsistence General Duty,Telford Office,Redfern Travel Ltd,SME,1201181, 106.05 ,Travel & Subsistence,Administration
HM Land Registry,HM Land Registry,19/12/2017,Travel & Subsistence General Duty,Wales Office,Redfern Travel Ltd,SME,1201181, 292.89 ,Travel & Subsistence,Administration
HM Land Registry,HM Land Registry,19/12/2017,Travel & Subsistence General Duty,Weymouth Office,Redfern Travel Ltd,SME,1201181,-4.45 ,Travel & Subsistence,Administration
HM Land Registry,HM Land Registry,19/12/2017,Travel & Subsistence General Duty,Dir: Finance,Redfern Travel Ltd,SME,1201181," 1,029.50 ",Travel & Subsistence,Administration
HM Land Registry,HM Land Registry,19/12/2017,Travel & Subsistence General Duty,HR Operations,Redfern Travel Ltd,SME,1201181, 58.30 ,Travel & Subsistence,Administration
HM Land Registry,HM Land Registry,19/12/2017,Travel & Subsistence General Duty,Communications Team,Redfern Travel Ltd,SME,1201181, 598.05 ,Travel & Subsistence,Administration
HM Land Registry,HM Land Registry,19/12/2017,Travel & Subsistence General Duty,International Business Development,Redfern Travel Ltd,SME,1201181, 371.40 ,Travel & Subsistence,Administration
HM Land Registry,HM Land Registry,19/12/2017,Travel & Subsistence General Duty,Operations Assurance and Risk,Redfern Travel Ltd,SME,1201181, 117.70 ,Travel & Subsistence,Administration
HM Land Registry,HM Land Registry,19/12/2017,Travel & Subsistence General Duty,Local Lawyer Support Group,Redfern Travel Ltd,SME,1201181, 308.70 ,Travel & Subsistence,Administration
HM Land Registry,HM Land Registry,19/12/2017,Travel & Subsistence General Duty,Customer Services,Redfern Travel Ltd,SME,1201181, 67.25 ,Travel & Subsistence,Administration
HM Land Registry,HM Land Registry,19/12/2017,Travel & Subsistence General Duty,Operation Focus,Redfern Travel Ltd,SME,1201181, 178.70 ,Travel & Subsistence,Administration
HM Land Registry,HM Land Registry,15/12/2017,Letter Post,Birkenhead Office,Royal Mail,Large,1200681," 1,798.25 ",Letter Post,Administration
HM Land Registry,HM Land Registry,15/12/2017,Letter Post,Central Facilities Management Team,Royal Mail,Large,1200681, 52.00 ,Letter Post,Administration
HM Land Registry,HM Land Registry,15/12/2017,Letter Post,Coventry Office,Royal Mail,Large,1200681," 1,454.10 ",Letter Post,Administration
HM Land Registry,HM Land Registry,15/12/2017,Letter Post,Croydon Office,Royal Mail,Large,1200681," 4,380.75 ",Letter Post,Administration
HM Land Registry,HM Land Registry,15/12/2017,Letter Post,Durham Office,Royal Mail,Large,1200681," 5,654.77 ",Letter Post,Administration
HM Land Registry,HM Land Registry,15/12/2017,Letter Post,Fylde Office,Royal Mail,Large,1200681," 2,119.15 ",Letter Post,Administration
HM Land Registry,HM Land Registry,15/12/2017,Letter Post,Gloucester Office,Royal Mail,Large,1200681," 2,327.97 ",Letter Post,Administration
HM Land Registry,HM Land Registry,15/12/2017,Letter Post,Hull Office,Royal Mail,Large,1200681," 3,239.11 ",Letter Post,Administration
HM Land Registry,HM Land Registry,15/12/2017,Letter Post,IS Service Delivery,Royal Mail,Large,1200681," 24,576.87 ",Letter Post,Administration
HM Land Registry,HM Land Registry,15/12/2017,Letter Post,Land Charges,Royal Mail,Large,1200681, 775.77 ,Letter Post,Administration
HM Land Registry,HM Land Registry,15/12/2017,Letter Post,Leicester Office,Royal Mail,Large,1200681," 1,653.82 ",Letter Post,Administration
HM Land Registry,HM Land Registry,15/12/2017,Letter Post,Nottingham Office,Royal Mail,Large,1200681," 2,297.82 ",Letter Post,Administration
HM Land Registry,HM Land Registry,15/12/2017,Letter Post,Peterborough Office,Royal Mail,Large,1200681," 1,912.73 ",Letter Post,Administration
HM Land Registry,HM Land Registry,15/12/2017,Letter Post,Plymouth Office,Royal Mail,Large,1200681," 2,288.90 ",Letter Post,Administration
HM Land Registry,HM Land Registry,15/12/2017,Letter Post,Telford Office,Royal Mail,Large,1200681," 1,038.06 ",Letter Post,Administration
HM Land Registry,HM Land Registry,15/12/2017,Letter Post,Wales Office,Royal Mail,Large,1200681," 14,036.01 ",Letter Post,Administration
HM Land Registry,HM Land Registry,15/12/2017,Letter Post,Weymouth Office,Royal Mail,Large,1200681," 1,616.04 ",Letter Post,Administration
HM Land Registry,HM Land Registry,01/12/2017,Computer Equipment Hire,IS Service Delivery,SAS Software Ltd,Large,1198875," 99,662.40 ",Computer Equipment Hire,Administration
HM Land Registry,HM Land Registry,20/12/2017,Rent Payable,Director of Information Systems,Savills,Large,1175269," 29,550.00 ",Rent Payable,Administration
HM Land Registry,HM Land Registry,20/12/2017,Rent Payable,Director of Information Systems,Savills,Large,1175264," 41,100.00 ",Rent Payable,Administration
HM Land Registry,HM Land Registry,21/12/2017,Rates Payable,Director of Information Systems,South Hams District Council,Large,1175825," 7,837.00 ",Rates Payable,Administration
HM Land Registry,HM Land Registry,21/12/2017,Rates Payable,Director of Information Systems,South Hams District Council,Large,1175824," 4,503.00 ",Rates Payable,Administration
HM Land Registry,HM Land Registry,06/12/2017,Software as a Service (Cloud),Dir: Finance,Specialist Computer Centres Plc - SCC,Large,1199604," 83,790.81 ",Cloud Computing Services,Administration
HM Land Registry,HM Land Registry,21/12/2017,Rates Payable,Gloucester Computer Centre,Tewkesbury Borough Council,Large,1174831," 11,615.00 ",Rates Payable,Administration
HM Land Registry,HM Land Registry,13/12/2017,RFS Outsourced Services,Central RFS,TNT (UK) Ltd,Large,1200534," 97,384.85 ",Regional File Store Outsourced Services,Administration
HM Land Registry,HM Land Registry,13/12/2017,RFS Outsourced Services,Central RFS,TNT (UK) Ltd,Large,1200535," 192,565.98 ",Regional File Store Outsourced Services,Administration
HM Land Registry,HM Land Registry,05/12/2017,Rates Payable,Weymouth Office,West Dorset District Council,Large,1176979," 4,093.00 ",Rates Payable,Administration
HM Land Registry,HM Land Registry,21/12/2017,Rates Payable,Weymouth Office,West Dorset District Council,Large,1176980," 15,663.00 ",Rates Payable,Administration
HM Land Registry,HM Land Registry,01/12/2017,Rates Payable,Birkenhead Office,Wirral Council,Large,1176876," 27,484.00 ",Rates Payable,Administration
HM Land Registry,HM Land Registry,11/12/2017,Maps & Plans Data Migration,Forward Scanning,Xerox (UK) Ltd,Large,1200209," 120,180.01 ",Maps & Plans Data Migration,Administration
